Cogmind - Beta 12 *** ADVENTURER MODE // 2023.06.15 @ 00:52:24 Player: core_nxt Result: Destroyed 0b10! Performance ------------- Evolutions (9) 4500 Regions Visited (35) 7000 Robots Destroyed (858) 4290 Value Destroyed (46788) 46788 Prototype IDs (205) 4100 Alien Tech Used (12) 2400 Bonus (31098) 31098 TOTAL SCORE: 100176 Bonus ------- High Alert Combat Kills 9798 Follower Combat Kills 823 Entered Garrisons 200 Aligned with FarCom 300 Met Data Miner 300 Met Imprinter 300 Destroyed Z-Imprinter 1000 Triggered Deep Caves Wall 500 Exposed GOLEM Chamber 500 Met Warlord at Base 500 MAIN.C Attacked Warlord 500 Used Core Reset Matrix 3000 Met Sigix 2000 Recovered Sigix Corpse 4000 Escaped with Sigix 5000 Win 3000 Friendly Fire -623 Cogmind --------- Core Integrity 1282/1850 Matter 975/975 Energy 943/950 System Corruption 16% Temperature Cool (4) Movement Treading (240) Ox1 Location Tau Ceti IV Orbit Parts ------- > --- POWER (2) -------- Vortex Chain Reactor > --- PROPULSION (6) --- High-density Centrium Heavy Treads High-density Centrium Heavy Treads High-density Centrium Wheel High-density Centrium Wheel (fused) > --- UTILITY (14) ----- High-capacity Storage Unit Advanced Matter Compressor Experimental Targeting Computer Experimental Target Analyzer Experimental Core Analyzer Experimental Core Analyzer Advanced Transmission Jammer Centrium Heavy Armor Plating SHELL Armor Advanced System Shield Core Physics Calibrator > --- WEAPON (4) ------- Multirail Multirail Fusion Bomb Launcher CR-A16's Behemoth Slayer > --- INVENTORY (45) --- Dimensional Node Initializer Dimensional Node Initializer Dimensional Node Initializer Transdimensional Reconstructor Transdimensional Reconstructor Transdimensional Reconstructor Transdimensional Reconstructor Transdimensional Reconstructor High-powered Transdimensional Reconstructor High-powered Transdimensional Reconstructor Integrity Redistributor Spacefold Activator Microwarp Drive Sigix Sheargun Sigix Sheargun Sigix Containment Pod Sigix Corpse Sigix Corpse Peak State ------------ > --- POWER ------------ Vortex Chain Reactor > --- PROPULSION ------- Biometal Heavy Treads High-density Centrium Heavy Treads High-density Centrium Wheel High-density Centrium Wheel > --- UTILITY ---------- High-capacity Storage Unit Advanced Matter Compressor Advanced Sensor Array Advanced Signal Interpreter Experimental Targeting Computer Experimental Target Analyzer Experimental Core Analyzer Experimental Core Analyzer Advanced Transmission Jammer SHELL Armor Advanced System Shield Core Physics Calibrator > --- WEAPON ----------- Hypervelocity Mass Driver Sigix Broadsword CR-A16's Behemoth Slayer > --- INVENTORY -------- Armored Heavy Treads High-density Centrium Heavy Treads Advanced Matter Compressor Centrium Heavy Armor Plating Improved Dynamic Insulation System Sensor Drone Bay Dimensional Node Initializer Dimensional Node Initializer Dimensional Node Initializer Transdimensional Reconstructor Transdimensional Reconstructor Transdimensional Reconstructor Transdimensional Reconstructor Transdimensional Reconstructor High-powered Transdimensional Reconstructor High-powered Transdimensional Reconstructor Integrity Redistributor Spacefold Activator Microwarp Drive Hypervelocity EM Gauss Rifle Sigix Sheargun Sigix Sheargun Multirail Multirail Hypervelocity Mass Driver Tiamat Missile Launcher Fusion Bomb Launcher Fusion Bomb Launcher Fusion Bomb Launcher Fusion Bomb Launcher Point Singularity Launcher Point Singularity Launcher Point Singularity Launcher Advanced Datajack Sigix Containment Pod Sigix Corpse Sigix Corpse [Rating: 274] Favorites ----------- Power Zionite Light DM Reactor Engine Ion Engine Power Core Enhanced Nuclear Core Reactor Zionite Light DM Reactor Propulsion Zionite Glidesys I Treads Improved Heavy Treads Leg High-density Centrium Leg Wheel High-density Centrium Wheel Hover Unit Zionite Glidesys I Flight Unit Cooled Cesium-ion Thruster Utility High-capacity Storage Unit Device Experimental Sensor Array Storage High-capacity Storage Unit Processor Experimental Targeting Computer Hackware System Mapper Protection Experimental Power Shielding Artifact Core Physics Calibrator Weapon Precision Phase Gun Energy Gun Precision Phase Gun Energy Cannon Vortex Driver Ballistic Gun Helical Railgun Ballistic Cannon Compact Linear Accelerator Launcher Precision Rocket Launcher Special Weapon Advanced Remote Datajack Impact Weapon Powered Hammer Slashing Weapon Sigix Broadsword Piercing Weapon CR-A16's Pointy Stick Special Melee Weapon Advanced Datajack Build | -11 -10 -10 -10 -9 -8 -7 -7 -7 -7 -6 -6 -6 -6 -6 -6 -5 -5 -5 -5 -5 -4 -4 -4 -4 -4 -4 -4 -3 -3 -3 -3 -2 -2 -2 -1 ------- Run | Jun Mat Min Exi Min Mat Fac Low Low Dat Pro Fac Low Low Zio Dee Pro Fac Upp Upp War Pro Fac Was Fac Upp Upp Zhi Pro Res Qua Gar Res Tes Sec Acc Slots Evolved 18 | . . . . . 4 2 . . . . 2 . . . . . 2 . . . . 2 . . . . . . 2 . . 2 . . 2 Power 1 | . . . . . . . . . . . . . . . . . . . . . . . . . . . . . . . . 1 . . . Propulsion 3 | . . . . . 1 1 . . . . 2 . . . . . . . . . . . . . . . . . . . . -1 . . . Utility 12 | . . . . . 3 1 . . . . . . . . . . 2 . . . . 1 . . . . . . . . . 3 . . 2 Weapon 2 | . . . . . . . . . . . . . . . . . . . . . . 1 . . . . . . 2 . . -1 . . . Parts Attached 678 | . 7 6 11 . 23 18 2 3 . . 14 3 7 4 36 8 44 1 1 7 2 33 . 36 5 . 4 . 25 108 63 43 40 41 83 Power 61 | . 2 . 4 . 2 2 . 2 . . 4 . . . 3 1 3 . . . . . . 1 . . . . 2 18 3 5 1 2 6 Engine 9 | . 1 . . . . 2 . 1 . . 1 . . . 1 . 1 . . . . . . . . . . . . 2 . . . . . Core 12 | . 1 . 2 . 1 . . 1 . . 3 . . . 1 . . . . . . . . . . . . . . 2 1 . . . . Reactor 40 | . . . 2 . 1 . . . . . . . . . 1 1 2 . . . . . . 1 . . . . 2 14 2 5 1 2 6 Propulsion 140 | . 1 2 3 . 4 5 . . . . 6 . . . 10 1 3 . 1 2 1 2 . 16 . . 2 . 12 15 9 17 5 7 16 Treads 31 | . . 2 . . . . . . . . . . . . . . . . . . . . . . . . . . 3 1 6 4 3 2 10 Leg 44 | . 1 . 3 . 3 1 . . . . . . . . 1 . . . . . . . . 5 . . . . 5 9 3 8 2 3 . Wheel 11 | . . . . . . . . . . . . . . . . . . . . . . . . . . . . . 1 1 . 1 . 2 6 Hover 40 | . . . . . . . . . . . . . . . 9 1 3 . 1 2 1 2 . 11 . . 1 . 3 3 . 3 . . . Flight 14 | . . . . . 1 4 . . . . 6 . . . . . . . . . . . . . . . 1 . . 1 . 1 . . . Utility 273 | . 2 2 1 . 12 5 1 . . . 1 3 . 1 9 3 23 1 . 1 1 13 . 11 1 . 2 . 4 50 34 16 26 14 36 Device 170 | . 1 2 . . 7 4 1 . . . 1 2 . . 5 . 13 1 . 1 . 8 . 11 1 . . . 3 29 22 9 18 10 21 Storage 16 | . 1 . . . . . . . . . . . . . 1 . 2 . . . . 1 . . . . 1 . . 6 2 . 1 . 1 Processor 26 | . . . 1 . 2 . . . . . . 1 . 1 . . 1 . . . . 1 . . . . . . . 6 1 5 3 1 3 Hackware 10 | . . . . . 1 . . . . . . . . . . . 1 . . . . 1 . . . . . . . 3 2 . . . 2 Protection 50 | . . . . . 2 1 . . . . . . . . 3 3 6 . . . 1 2 . . . . 1 . 1 6 7 2 4 2 9 Artifact 1 | . . . . . . . . . . . . . . . . . . . . . . . . . . . . . . . . . . 1 . Weapon 204 | . 2 2 3 . 5 6 1 1 . . 3 . 7 3 14 3 15 . . 4 . 18 . 8 4 . . . 7 25 17 5 8 18 25 Energy Gun 68 | . 2 1 2 . 1 . . . . . . . 6 . 8 2 10 . . 2 . 8 . 1 1 . . . 5 9 3 . 3 2 2 Energy Cannon 11 | . . . . . . . . . . . . . . . . . 1 . . 2 . 3 . . . . . . . 1 1 . 2 1 . Ballistic Gun 32 | . . . 1 . 4 4 . 1 . . . . . . . . . . . . . 1 . . . . . . . 3 3 1 . 8 6 Ballistic Cannon 35 | . . . . . . 1 1 . . . . . . . . . 2 . . . . 2 . 6 2 . . . 2 6 5 . . . 8 Launcher 9 | . . 1 . . . 1 . . . . 3 . . . . . . . . . . . . . . . . . . . 1 1 . . 2 Special Weapon 15 | . . . . . . . . . . . . . . . 1 . . . . . . . . . 1 . . . . 4 . 2 2 5 . Impact Weapon 1 | . . . . . . . . . . . . . . . . . . . . . . . . . . . . . . . 1 . . . . Slashing Weapon 11 | . . . . . . . . . . . . . 1 1 5 . . . . . . . . . . . . . . . 1 . 1 1 1 Piercing Weapon 13 | . . . . . . . . . . . . . . . . 1 2 . . . . 1 . . . . . . . . 1 1 . 1 6 Special Melee Weapon 9 | . . . . . . . . . . . . . . 2 . . . . . . . 3 . 1 . . . . . 2 1 . . . . Unidentified Prototypes 75 | . . 2 6 . 9 6 . . . . 3 . . . 7 . 9 . . 2 . 8 . . . . 3 . 2 1 . 7 8 1 1 Corrupted Parts 3 | . . . . . 2 . . . . . . . . . 1 . . . . . . . . . . . . . . . . . . . . System Corruption 11 | . . . . . 10 . . . . . . . . . 1 . . . . . . . . . . . . . . . . . . . . Parts Lost 87 | . 4 4 3 . 2 6 . 2 . . . . 2 . 3 2 14 . 1 . 2 2 . 7 . . . 1 1 . . 3 4 3 21 Power 7 | . 1 1 . . . 2 . 1 . . . . . . . . . . . . . . . 1 . . . . . . . . . . 1 Propulsion 24 | . 1 1 2 . 1 2 . . . . . . . . 1 1 1 . 1 . 2 1 . 3 . . . 1 1 . . 1 . . 4 Utility 29 | . . . . . . . . . . . . . 1 . 1 . 7 . . . . . . 2 . . . . . . . 1 3 2 12 Weapon 27 | . 2 2 1 . 1 2 . 1 . . . . 1 . 1 1 6 . . . . 1 . 1 . . . . . . . 1 1 1 4 Highest Loss Streak 5 | . 4 3 1 . 1 2 . 2 . . . . 1 . 2 2 4 . 1 . 1 2 . 2 . . . 1 1 . . 2 4 2 5 To Critical Strikes 4 | . . 1 . . . . . . . . . . . . . . . . . . . . . . . . . . . . . 1 . 1 1 Average Slot Usage (%) 86 | . 89 80 64 85 86 90 91 92 92 92 88 99 92 90 82 92 96 94 94 94 90 92 95 93 100 100 97 92 92 89 88 79 84 77 74 Reactor 3 | . . . 2 14 8 3 . . . . . . . . 3 6 4 5 5 5 5 5 5 4 5 5 5 5 4 3 3 3 4 4 2 Treads 3 | . . 5 17 . . . . . . . . . . . . . . . . . . . . . . . . . 2 3 5 4 3 6 6 Leg 9 | . 27 22 8 28 22 22 . . . . . . . . . . . . . . . . . . . . . . 16 21 18 13 16 7 . Wheel 1 | . . . . . . . . . . . . . . . . . . . . . . . . . . . . . . . . . . 4 6 Hover 10 | . . . . . . . . . . . . . . . 26 40 38 38 38 38 35 33 35 33 35 35 35 32 8 . . . . . . Flight 3 | . . . . . 1 4 30 30 30 30 30 40 40 40 10 . . . . . . . . . . . . . . . . . . . . Device 10 | . 5 . . . 7 5 7 7 7 7 5 5 3 . 9 6 10 11 11 15 16 12 15 14 20 20 16 15 14 12 13 19 23 13 7 Storage 7 | . 14 14 14 14 9 7 7 7 7 7 6 6 6 6 6 6 8 11 11 11 11 9 10 9 5 5 5 5 4 4 4 4 4 4 6 Processor 12 | . . . 4 14 17 23 23 23 23 23 20 20 20 20 13 12 11 11 11 11 11 14 15 15 15 15 15 15 13 13 11 11 12 12 14 Hackware 5 | . . . . . 5 7 7 7 7 7 6 6 6 6 . . 4 5 5 5 5 5 5 5 5 5 5 5 4 7 9 8 8 7 4 Protection 1 | . . . . . . . . . . . . . . . 1 7 5 5 5 . . 1 . . . . . . 2 1 . . . 4 3 Energy Gun 6 | . 16 25 11 14 1 . . . . . . . 5 . 2 11 8 5 5 5 5 7 5 3 . . . . 15 9 4 4 3 2 . Ballistic Gun 1 | . 11 . 2 . 11 7 . 2 7 7 6 6 . . . . . . . . . . . . . . . . . . . 2 . 2 3 Ballistic Cannon 2 | . . . . . . 2 6 4 . . . . . . . . . . . . . 1 . 6 15 15 15 15 3 7 7 4 . . 3 Naked Turns . | . . . . . . . . . . . . . . . . . . . . . . . . . . . . . . . . . . . . Heaviest Build 180 | 10 49 50 67 62 65 67 22 27 21 21 29 22 22 15 64 68 72 64 64 77 77 82 80 82 72 72 72 71 86 99 94 106 118 131 180 Greatest Support 188 | 20 20 40 60 50 67 77 24 24 24 24 36 36 36 36 98 98 98 98 98 98 98 94 80 156 80 80 90 80 156 156 156 188 124 170 180 Greatest Overweight (x) 8 | . 4 2 2 1 1 1 . 1 . . . . . . . . . . . . . 1 . 1 . . . . 1 1 1 1 1 1 8 Average Overweight (x) . | . 1 1 1 1 . . . . . . . . . . . . . . . . . . . . . . . . . . . . . . 2 Largest Inventory Capacity 50 | . 20 20 35 35 35 35 35 35 35 35 35 35 40 40 40 35 35 35 35 50 50 50 50 50 50 50 50 50 50 50 50 50 50 50 45 Average Capacity 41 | . 19 20 21 35 35 35 35 35 35 35 35 35 36 40 35 35 35 35 35 38 50 50 50 50 50 50 50 50 50 49 50 50 50 44 45 Most Carried 50 | . 9 11 29 29 30 35 34 35 35 35 35 35 37 40 39 35 35 35 35 46 46 50 50 50 46 46 50 50 50 50 50 50 50 50 45 Average Carried 37 | . 5 10 12 29 26 26 34 34 35 34 33 34 35 39 33 34 32 35 34 36 45 45 50 48 46 46 48 49 48 47 49 47 46 42 40 Final Capacity 50 | 8 20 20 35 35 35 35 35 35 35 35 35 35 40 40 35 35 35 35 35 50 50 50 50 50 50 50 50 50 50 50 50 50 50 45 45 Final Carried 50 | 6 9 9 29 29 25 34 34 35 35 35 35 35 37 39 35 34 35 35 34 46 45 50 50 46 46 46 49 50 49 50 48 48 50 42 20 Class Distribution -------------------- 38% | Wizard-Mutant 12% | Hauler-Mutant 9% | Mutant 7% | Wizard-Scout 5% | Wizard-Sprinter 3% | Alien-Mutant 3% | Wizard-Skirmisher 3% | Alien-Assassin 3% | Hauler-Sprinter Dominant Class ---------------- Mutant | -10/Materials Mutant | -10/Mines Mutant | -10/Exiles Hauler-Mutant | -9/Mines Hauler-Mutant | -8/Materials Wizard-Mutant | -7/Factory Wizard-Sprinter | -7/Lower Caves Wizard-Sprinter | -7/Lower Caves Wizard-Sprinter | -7/Data Miner Wizard-Sprinter | -6/Proximity Caves Wizard-Sprinter | -6/Factory Wizard-Sprinter | -6/Lower Caves Hauler-Sprinter | -6/Lower Caves Hauler-Sprinter | -6/Zion Commander-Mutant | -6/Deep Caves Hauler-Mutant | -5/Proximity Caves Wizard-Mutant | -5/Factory Wizard-Mutant | -5/Upper Caves Wizard-Mutant | -5/Upper Caves Wizard-Mutant | -5/Warlord Hauler-Mutant | -4/Proximity Caves Wizard-Scout | -4/Factory Wizard-Scout | -4/Waste Wizard-Scout | -4/Factory Wizard-Scout | -4/Upper Caves Wizard-Scout | -4/Upper Caves Wizard-Scout | -4/Zhirov Wizard-Scout | -3/Proximity Caves Wizard-Mutant | -3/Research Wizard-Mutant | -3/Quarantine Wizard-Mutant | -3/Garrison Wizard-Mutant | -2/Research Wizard-Assassin | -2/Testing Wizard-Mutant | -2/Section 7 Alien-Assassin | -1/Access Resources | -11 -10 -10 -10 -9 -8 -7 -7 -7 -7 -6 -6 -6 -6 -6 -6 -5 -5 -5 -5 -5 -4 -4 -4 -4 -4 -4 -4 -3 -3 -3 -3 -2 -2 -2 -1 ----------- Run | Jun Mat Min Exi Min Mat Fac Low Low Dat Pro Fac Low Low Zio Dee Pro Fac Upp Upp War Pro Fac Was Fac Upp Upp Zhi Pro Res Qua Gar Res Tes Sec Acc Matter Collected 15599 | 200 109 28 267 20 488 502 140 83 . 17 212 67 46 55 835 77 1334 10 10 59 21 597 . 1018 170 48 48 91 1015 1518 1323 610 304 744 3533 Remotely 225 | . . . . . . . . . . . . . . . . . . . . . . . . . . . . . . . . 225 . . . Salvage Created 57804 | . 361 108 598 50 983 1445 613 419 . 178 1047 462 313 . 1149 426 4553 . 300 . 1010 7630 1614 3550 263 174 104 378 5041 2335 2832 1316 2352 6429 9771 Parts 888 | . 29 4 . 5 43 46 . . . . 2 4 10 . 7 15 85 . 16 . 28 117 . 17 2 . . 1 6 9 19 12 . 29 382 Haulers Intercepted 56 | . 2 . . . 3 5 . . . . 4 . . . . . 9 . . . . 7 . 5 . . . . 7 2 . 1 2 2 7 Recyclers Shooed 3 | . . . . . . . . . . . . . . . . . 1 . . . . 1 . . . . . . . . . . . . 1 Parts Field Recycled . | . . . . . . . . . . . . . . . . . . . . . . . . . . . . . . . . . . . . Retrieved Matter . | . . . . . . . . . . . . . . . . . . . . . . . . . . . . . . . . . . . . Parts Self-Destructed 54 | . . . . . . . . . . 4 . 3 9 . . 27 . . 3 . 5 . . . 2 . . 1 . . . . . . . Prevented 41 | . . . . . . . . . . . . . 4 . . . . . 13 . 23 . . . . 1 . . . . . . . . . Kills | -11 -10 -10 -10 -9 -8 -7 -7 -7 -7 -6 -6 -6 -6 -6 -6 -5 -5 -5 -5 -5 -4 -4 -4 -4 -4 -4 -4 -3 -3 -3 -3 -2 -2 -2 -1 ------- Run | Jun Mat Min Exi Min Mat Fac Low Low Dat Pro Fac Low Low Zio Dee Pro Fac Upp Upp War Pro Fac Was Fac Upp Upp Zhi Pro Res Qua Gar Res Tes Sec Acc Combat Hostiles Destroyed 692 | . 8 12 8 3 13 20 16 10 . 3 8 12 7 . 12 6 61 . 4 . 12 84 6 41 9 4 . 11 58 25 36 16 24 64 99 Melee 5 | . . . . . . 2 . . . . . . . . 2 . 1 . . . . . . . . . . . . . . . . . . Guns 159 | . 8 8 . 3 10 7 . . . . . . 4 . 4 6 23 . 2 . 7 21 . 3 . . . . . . . . . 4 49 Cannons 40 | . . . . . . . . . . . . . . . . . . . . . . 1 . . 3 . . 1 . 3 5 3 . . 24 AOE 21 | . . 4 . . . . . . . . . 2 2 . . . 3 . 1 . . 7 . 1 . . . . 1 . . . . . . Classes Destroyed 38 | . 4 2 2 . 3 6 1 1 . . 1 . . . 3 . 3 . . . . 3 1 . 1 . . 1 . 1 . 3 1 1 . Worker 25 | . . . . . . 4 . . . . . . . . . . . . . . . 6 . . . . . . 2 . . 1 . 1 11 Builder 18 | . . . . . . 2 . . . . 2 . . . . . . . . . . 3 . 2 . . . . 1 . . . . 1 7 Tunneler 1 | . . . . . . . . . . . . . . . . . . . . . . 1 . . . . . . . . . . . . . Hauler 56 | . 2 . . . 3 5 . . . . 4 . . . . . 9 . . . . 7 . 5 . . . . 7 2 . 1 2 2 7 Recycler 2 | . . . . . . . . . . . 1 . . . . . . . . . . . . . . . . . . . . . . . 1 Carrier 8 | . . . . . . 1 . . . . . . . . . . 1 . . . . 2 . 1 . . . . 2 . . 1 . . . Mechanic 3 | . . . . . . . . . . . . . . . . . 1 . . . . 2 . . . . . . . . . . . . . Operator 10 | . . . . . 1 . . . . . 1 . . . . . 1 . . . . 3 . . . . . . . 1 . . 1 1 1 Drone 2 | . . . . . . . . . . . . . . . . . . . . . . . . . . . . 2 . . . . . . . Turret 1 | . . . 1 . . . . . . . . . . . . . . . . . . . . . . . . . . . . . . . . Watcher 56 | . 3 . . . 3 2 . . . . 3 . . . . . 6 . . . . 11 . 9 . . . . 5 3 . . 2 5 4 Swarmer 133 | . 5 3 . 3 . 11 11 . . . 3 7 3 . . 1 19 . . . . 9 . 8 8 . . 8 13 5 3 2 7 4 . Cutter 1 | . . . . . . . . . . . . . . . . . . . . . . 1 . . . . . . . . . . . . . Grunt 188 | . 3 . . . 8 2 . 4 . 2 2 3 3 . . 4 10 . 2 . 5 32 . 8 . 1 . . 16 3 16 2 2 24 36 Brawler 21 | . . . . . . . . . . . . . . . . . 2 . 1 . 3 3 . . . . . . 1 . 5 . . 3 3 Duelist 13 | . . . . . . 1 . . . 1 1 . . . . . . . . . 2 1 . 2 . . . . . . 1 1 . 1 2 Protector 2 | . . . . . . . . . . . . . . . . . . . . . . 1 . . . . . . . 1 . . . . . Researcher 25 | . . . . . . . . . . . . . . . . . . . . . . . . . . . . . . 8 . . 6 11 . Sentry 59 | . . . . . 4 1 . . . . 2 1 1 . . . 10 . . . 1 9 . 6 . 1 . 1 8 . . . 3 8 3 Demolisher 3 | . . 1 . . . . . . . . . . . . . . 1 . . . . . . . . . . . . . . 1 . . . Specialist 10 | . . . . . . 1 . . . . . . . . . . . . . . . 2 . . . . . . . 6 1 . . . . Hunter 73 | . . . . . 1 2 . . . . . . . . . 1 7 . 1 . . 18 . 4 . . . . 8 2 4 1 . . 24 Programmer 93 | . . . . . . 2 . . . . . 1 . . . . 9 . . . . 6 . 11 . . . . 8 5 5 2 11 10 23 Heavy 9 | . . . . . . . . . . . . . . . . . 2 . . . . 2 . 2 . . . . 1 . . . . 1 1 Behemoth 22 | . . . . . . . 1 1 . . . . . . . . 1 . . . 1 2 . 2 . . . . 3 . 1 1 . 2 7 Compactor 6 | . . . . . . . . . . . . . . . . . . . . . . . 6 . . . . . . . . . . . . S7 Guard 1 | . . . . . . . . . . . . . . . . . . . . . . . . . . . . . . . . . . 1 . Lightning 3 | . . . . . . . . . . . . . . . . . . . . . . . . . . . . . . 3 . . . . . Striker 6 | . . . . . . . . . . . . . . . . . . . . . . . . . . . . . . . . 2 . 4 . Executioner 7 | . . . . . . . . . . . . . . . . . . . . . . . . . . . . . . . . 3 . 4 . Alpha 7 2 | . . . . . . . . . . . . . . . . . . . . . . . . . . . . . . . . . . 2 . Fortress 1 | . . . . . . . . . . . . . . . . . . . . . . . . . . . . . . . . . 1 . . Zionite 8 | . . . 8 . . . . . . . . . . . . . . . . . . . . . . . . . . . . . . . . Z-Light 4 | . . . . . . . . . . . . . . . 3 1 . . . . . . . . . . . . . . . . . . . Master Thief 7 | . . . . . . . . 5 . . . . . . . . . . . . . . . . . 2 . . . . . . . . . Assembler 2 | . . . . . . . . . . . . . . . 2 . . . . . . . . . . . . . . . . . . . . Assembled 19 | . . 8 7 . . . . . . . . . . . 4 . . . . . . . . . . . . . . . . . . . . Golem 4 | . . . . . . . . . . . . . . . 4 . . . . . . . . . . . . . . . . . . . . Thug 1 | . . . . . . . 1 . . . . . . . . . . . . . . . . . . . . . . . . . . . . Butcher 3 | . . . . . . . 3 . . . . . . . . . . . . . . . . . . . . . . . . . . . . Fireman 1 | . . . . . . . . . . . . . . . . . . . . . . . . . . . . . . . . 1 . . . Mutant 1 | . . . . . . . . . . . . . . . . . . . . . . . . . 1 . . . . . . . . . . Best Kill Streak 17 | . 3 7 7 3 4 8 5 5 . 3 7 7 7 . 5 2 7 . 3 . 8 15 17 7 4 2 . 9 16 4 6 6 11 7 16 Combat Bots Only 13 | . 2 7 7 3 4 4 5 5 . 3 3 7 7 . 4 2 7 . 3 . 8 11 13 6 4 2 . 9 12 4 6 5 7 6 12 Max Kills in Single Turn 5 | . 1 2 2 1 2 2 1 1 . 1 1 3 2 . 1 2 2 . 1 . 2 5 2 2 2 1 . 1 2 1 1 2 1 2 2 Gunslinging 1 | . . . . . 1 . . . . . . . . . . . 1 . . . . . . . . . . . . . . . . . . Exploded 3 | . . 2 . . . . . . . . . 2 1 . . . 2 . 1 . . 3 . 1 . . . . 1 . . . . . . Melee 1 | . . . . . . 1 . . . . . . . . 1 . 1 . . . . . . . . . . . . . . . . . . Uniques/NPCs Destroyed 5 | . . . 4 . . . . . . . . . . . 1 . . . . . . . . . . . . . . . . . . . . 8R-AWN (-10/Exiles) EX-HEX (-10/Exiles) EX-DEC (-10/Exiles) EX-BIN (-10/Exiles) Z-Imprinter (-6/Deep Caves) Combat | -11 -10 -10 -10 -9 -8 -7 -7 -7 -7 -6 -6 -6 -6 -6 -6 -5 -5 -5 -5 -5 -4 -4 -4 -4 -4 -4 -4 -3 -3 -3 -3 -2 -2 -2 -1 -------- Run | Jun Mat Min Exi Min Mat Fac Low Low Dat Pro Fac Low Low Zio Dee Pro Fac Upp Upp War Pro Fac Was Fac Upp Upp Zhi Pro Res Qua Gar Res Tes Sec Acc Damage Taken 29527 | . 482 399 531 12 332 1034 215 61 . 58 53 164 151 . 373 353 2432 . 107 . 382 1060 . 495 106 10 . 163 887 548 1024 1271 823 1353 14648 Core 2358 | . 52 33 203 . 52 272 69 18 . 28 14 55 14 . 78 41 185 . . . 40 139 . 32 10 5 . 38 164 56 18 118 2 54 568 Absorbed by Shields . | . . . . . . . . . . . . . . . . . . . . . . . . . . . . . . . . . . . . Reduced by Siege Mode 352 | . . . . . . . . . . . . . . . . . . . . . . . . . . . . . . . . . 16 . 336 Redirected to Shielding 488 | . . . . . . . . . . . . . . . . 12 415 . . . . 61 . . . . . . . . . . . . . Regen/Repaired (Parts) 11194 | . . . . . 263 . . . . . 90 . . . 60 62 1086 . 54 . 75 395 . 118 7 . . 36 70 911 . . 419 1308 6240 Core Remaining (%) 70 | 100 . . . 5 90 . . . . 44 . . . . . 76 . . . . 77 . . . . . . 80 . . 81 . . 80 69 Volleys Fired 1200 | . 52 32 23 . 30 47 19 15 . 4 20 11 . . 3 16 119 . . . . 64 5 67 11 6 1 14 89 58 70 31 53 98 242 Largest 3 | . 2 2 1 . 2 2 1 1 . 1 1 2 . . 1 2 2 . . . . 1 1 3 3 1 1 3 1 2 3 2 1 2 3 Hottest 234 | . 90 90 50 . 60 71 48 48 . 33 43 76 . . 60 120 140 . . . . 100 100 210 202 70 70 202 70 164 234 164 100 94 198 Shots Fired 1962 | . 102 44 23 5 53 56 19 15 . 4 20 12 18 . 21 32 231 3 12 1 30 146 5 112 15 6 1 18 89 68 87 44 54 102 514 Gun 1337 | . 102 36 23 5 53 33 . 9 . 4 19 11 18 . 21 32 228 3 12 1 30 119 . 29 . . . . . 1 12 30 37 94 375 Cannon 600 | . . . . . . 23 19 6 . . . . . . . . 3 . . . . 27 5 83 15 6 1 18 89 67 75 13 16 . 134 Launcher 15 | . . 8 . . . . . . . . 1 1 . . . . . . . . . . . . . . . . . . . . . . 5 Special 10 | . . . . . . . . . . . . . . . . . . . . . . . . . . . . . . . . 1 1 8 . Kinetic 1112 | . 49 . 13 . 43 56 19 15 . 4 19 11 . . . . 3 . . . . 5 . 80 15 6 1 18 89 67 75 13 . 8 503 Thermal 409 | . 53 36 10 . . . . . . . . . . . 3 32 109 . . . . . . . . . . . . 1 12 30 37 86 . Explosive 15 | . . 8 . . . . . . . . 1 1 . . . . . . . . . . . . . . . . . . . . . . 5 Electromagnetic 246 | . . . . 5 10 . . . . . . . 18 . 18 . 36 3 12 1 30 82 . 26 . . . . . . . . . . 5 Slashing 1 | . . . . . . . . . . . . . . . . . . . . . . . . . . . . . . . . . . . 1 Entropic 86 | . . . . . . . . . . . . . . . . . . . . . . 59 5 6 . . . . . . . . 16 . . Phasic 83 | . . . . . . . . . . . . . . . . . 83 . . . . . . . . . . . . . . . . . . Robot Hit Streak 70 | . 19 11 16 6 18 10 8 14 . 4 9 8 23 . 16 33 32 16 20 6 35 60 14 34 13 4 5 8 17 27 17 39 45 47 70 Robot Miss Streak 4 | . 4 2 2 1 1 1 2 1 . 1 1 1 1 . 2 1 2 . 2 . 1 2 . 2 1 1 . 2 2 1 1 1 1 1 3 Penetration Max 2 | . . . 1 . 1 2 . . . . . . . . . . . . . . . 1 1 . . . . . . . . . . 2 2 Secondary Targets 26 | . . 3 . . 1 . . . . . . . . . . 2 6 . . . . . . . . . . . . . . . . . 14 Max Gunslinging Chain 1 | . . 1 . . 1 . . . . . . . . . . 1 1 . . . . . . . . . . . . . . . . . 1 Autonomous 241 | . . . . 5 10 . . . . . . . 18 . 18 . 36 3 12 1 30 82 . 26 . . . . . . . . . . . Shots Hit Robots 1732 | . 70 29 18 5 40 45 14 12 . 3 18 10 18 2 66 30 194 3 11 1 30 136 5 84 8 4 1 12 71 43 69 47 52 125 456 Core Hits 801 | . 21 28 . 3 24 35 . . . . 1 2 16 . 23 14 83 1 10 1 39 178 . 38 3 . . . 5 4 14 14 2 20 222 Critical Kills 52 | . . . . . 5 6 . . . . . . . . . . . . . . . . . . . . . . . . . . . . 41 Critical Parts Destroyed 50 | . . . . . 3 9 . . . . . . . . . . . . . . . . . . . . . . . . . . . . 38 Critical Strikes 165 | . 3 . . . 8 15 . . . . . . 2 . 2 . 15 . . . 4 20 . 8 . . . . . . 4 2 . 2 80 Burn 6 | . 3 . . . . . . . . . . . . . . . . . . . . . . . . . . . . . 1 . . 2 . Destroy 103 | . . . . . 8 15 . . . . . . . . . . . . . . . . . . . . . . . . . . . . 80 Blast 5 | . . . . . . . . . . . . . . . . . . . . . . . . 3 . . . . . . 1 1 . . . Corrupt 36 | . . . . . . . . . . . . . 2 . 2 . 3 . . . 4 20 . 5 . . . . . . . . . . . Impale 4 | . . . . . . . . . . . . . . . . . 1 . . . . . . . . . . . . . 2 1 . . . Intensify 11 | . . . . . . . . . . . . . . . . . 11 . . . . . . . . . . . . . . . . . . Melee Attacks 194 | . . . . . . . . . . . . . 1 3 46 2 2 . . . . 2 . 1 . . . . . . 10 6 5 64 52 Impact . | . . . . . . . . . . . . . . . . . . . . . . . . . . . . . . . . . . . . Slashing 160 | . . . . . . . . . . . . . 1 1 45 . . . . . . . . . . . . . . . . . 5 63 45 Piercing 28 | . . . . . . . . . . . . . . . . 2 2 . . . . . . . . . . . . . 10 6 . 1 7 Sneak Attacks 25 | . . . . . . . . . . . . . . 2 7 . 1 . . . . 2 . 1 . . . . . . . . . 6 6 Combat Hostiles 10 | . . . . . . . . . . . . . . . 5 . 1 . . . . 1 . 1 . . . . . . . . . 1 1 Follow-up Attacks . | . . . . . . . . . . . . . . . . . . . . . . . . . . . . . . . . . . . . Damage Inflicted 40588 | . 712 524 . 113 918 829 . 44 . . 75 251 921 . 694 880 4128 92 418 27 1876 8993 . 1295 126 . . 45 448 366 1507 1065 1348 1434 11459 Guns 29336 | . 712 309 . 113 915 619 . 44 . . . . 538 . 538 793 3782 92 358 27 1550 6459 . 852 . . . . . . 316 455 . 1334 9530 Cannons 5171 | . . . . . . . . . . . . . . . . . . . . . . 190 . 404 126 . . 45 . 366 528 445 1348 . 1719 Explosions 4404 | . . 213 . . . . . . . . 75 251 383 . . . 265 . 60 . 326 2344 . 39 . . . . 448 . . . . . . Melee 1435 | . . . . . . . . . . . . . . . 156 87 81 . . . . . . . . . . . . . 663 165 . 100 183 Ramming 242 | . . 2 . . 3 210 . . . . . . . . . . . . . . . . . . . . . . . . . . . . 27 Kinetic 15174 | . 312 . . . 556 619 . 44 . . . . . . . . . . . . . 190 . 404 126 . . 45 . 366 528 445 . 290 11249 Thermal 9041 | . 400 309 . . . . . . . . . . 383 . 86 793 2892 . 60 . 326 1938 . 39 . . . . . . 316 455 . 1044 . Explosive 1393 | . . 213 . . . . . . . . 75 251 . . . . . . . . . 406 . . . . . . 448 . . . . . . Electromagnetic 11361 | . . . . 113 359 . . . . . . . 538 . 452 . 561 92 358 27 1550 6459 . 852 . . . . . . . . . . . Impact . | . . . . . . . . . . . . . . . . . . . . . . . . . . . . . . . . . . . . Slashing 439 | . . . . . . . . . . . . . . . 156 . . . . . . . . . . . . . . . . . . 100 183 Piercing 996 | . . . . . . . . . . . . . . . . 87 81 . . . . . . . . . . . . . 663 165 . . . Entropic 1348 | . . . . . . . . . . . . . . . . . . . . . . . . . . . . . . . . . 1348 . . Phasic 594 | . . . . . . . . . . . . . . . . . 594 . . . . . . . . . . . . . . . . . . Highest Corruption 16 | . 1 1 1 1 13 . . . . . . . . . 1 1 3 . . . . 2 9 9 . . . . 1 2 2 . 1 1 16 Average Corruption 2 | . 1 1 1 1 3 . . . . . . . . . 1 1 1 . . . . 1 7 2 . . . . 1 1 1 . 1 1 10 Corruption Purged 27 | . . . . . . . . . . . . . . . . . 3 . . . . . . 12 . . . . 1 . 2 . 2 . 7 Corruption Blocked 110 | . . . . . . . . . . . . . . . . . . . . . . . . . . . . . . 15 . 36 39 20 . Effects 270 | . 9 5 11 6 16 . . . . . . . . . 2 10 16 . . . . 12 4 15 . . . . 3 28 15 . 4 1 113 Message Errors 63 | . 3 2 3 1 3 . . . . . . . . . 1 2 3 . . . . 2 1 3 . . . . . 6 7 . 1 . 25 Matter Fused 67 | . 2 1 2 2 6 . . . . . . . . . . 3 6 . . . . 5 . 5 . . . . . 4 1 . 1 1 28 Heat Flow Errors 37 | . 2 1 . 1 3 . . . . . . . . . . 3 4 . . . . 1 2 . . . . . 2 6 1 . . . 11 Energy Discharges 32 | . 1 . 4 1 1 . . . . . . . . . 1 1 . . . . . 1 . 4 . . . . 1 6 2 . . . 9 Parts Rejected 5 | . . . . . . . . . . . . . . . . . . . . . . . . . . . . . . . . . . . 5 Parts Fused 5 | . 1 . . . . . . . . . . . . . . . . . . . . . . . . . . . . . 1 . . . 3 Data Loss (minor) 36 | . . . 1 1 2 . . . . . . . . . . 1 . . . . . 3 1 2 . . . . . 4 3 . 1 . 17 Data Loss (major) 9 | . . 1 1 . 1 . . . . . . . . . . . 1 . . . . . . . . . . . . 1 . . . . 4 Misfires 8 | . . . . . . . . . . . . . . . . . 2 . . . . . . 1 . . . . . . . . 1 . 4 Alerts 3 | . . . . . . . . . . . . . . . . . . . . . . . . . . . . . . 1 . . . . 2 Misdirections 1 | . . . . . . . . . . . . . . . . . . . . . . . . . . . . . . . . . . . 1 Weapon Failures 4 | . . . . . . . . . . . . . . . . . . . . . . . . . . . . . . . . . . . 4 Overload Shots . | . . . . . . . . . . . . . . . . . . . . . . . . . . . . . . . . . . . . Overflow Damage 627 | . . 3 . . . 3 . . . . 26 . 28 . 8 . . . 15 . . 210 . 10 . . . 15 108 . 189 . . . 12 Projectiles 42 | . . . . . . . . . . . . . . . . . . . . . . . . 10 . . . 15 . . 5 . . . 12 Explosions 390 | . . 3 . . . . . . . . 26 . 28 . . . . . 15 . . 210 . . . . . . 108 . . . . . . Melee 195 | . . . . . . 3 . . . . . . . . 8 . . . . . . . . . . . . . . . 184 . . . . Knockbacks 26 | . . . . . . . . . . . . . . . . . . . . . . 2 . 1 . . . . . 3 . 5 . . 15 Impact . | . . . . . . . . . . . . . . . . . . . . . . . . . . . . . . . . . . . . Kinetic 25 | . . . . . . . . . . . . . . . . . . . . . . 2 . 1 . . . . . 3 . 5 . . 14 Secondary 1 | . . . . . . . . . . . . . . . . . . . . . . . . . . . . . . . . . . . 1 Self-Inflicted Damage 568 | . . 60 . . . . . . . . . . 37 . . . 21 . 40 . 48 227 . 15 . . . . 96 . . . . . 24 Shots 13 | . . 2 . . . . . . . . . . 1 . . . 1 . 1 . 1 4 . 1 . . . . 1 . . . . . 1 Rammed 5 | . . 2 . . . . . . . . . . . . . . . . . . . . . . . . . . . . . . . . 3 Targets Rammed 51 | . . 2 . . 1 45 . . . . . . . . . . . . . . . . . . . . . . . . . . . . 3 Kicked 46 | . . . . . 1 45 . . . . . . . . . . . . . . . . . . . . . . . . . . . . . Crushed . | . . . . . . . . . . . . . . . . . . . . . . . . . . . . . . . . . . . . Highest Temperature 645 | . 222 200 80 247 162 28 18 9 . 28 45 24 30 34 78 319 645 . . . . 331 377 318 30 . . 36 213 118 201 . . 201 198 Average Temperature 83 | . 60 55 20 124 68 8 7 3 . 11 12 10 9 10 10 126 169 . . . . 85 172 76 18 . . 24 84 75 51 . . 104 114 Received Heat Transfer 3061 | . 171 20 80 . 180 90 9 . . 54 6 54 18 . 78 105 480 . . . 42 123 . 21 . . . . 111 42 232 236 72 144 693 Effects 23 | . . . . . . . . . . . . . . . . 3 17 . . . . . . . . . . . . . . . . 3 . Energy Bleed 4 | . . . . . . . . . . . . . . . . . 4 . . . . . . . . . . . . . . . . . . Interference 13 | . . . . . . . . . . . . . . . . 3 7 . . . . . . . . . . . . . . . . 3 . Matter Decay 1 | . . . . . . . . . . . . . . . . . 1 . . . . . . . . . . . . . . . . . . Damage (minor) 1 | . . . . . . . . . . . . . . . . . 1 . . . . . . . . . . . . . . . . . . Damage (major) 4 | . . . . . . . . . . . . . . . . . 4 . . . . . . . . . . . . . . . . . . Siege Activations 8 | . . . . . . . . . . . . . . . . . . . . . . . . . . . . . . . . . 1 . 7 Total Turns 348 | . . . . . . . . . . . . . . . . . . . . . . . . . . . . . . . . . 28 . 320 Longest Duration 135 | . . . . . . . . . . . . . . . . . . . . . . . . . . . . . . . . . 28 . 135 Robots Corrupted 29 | . . . . . . . . . . . . . 1 . . . 2 . 1 . 5 16 . 4 . . . . . . . . . . . Combat Hostiles 24 | . . . . . . . . . . . . . 1 . . . 2 . 1 . 5 13 . 2 . . . . . . . . . . . Parts Fried 102 | . . . . . 6 . . . . . . . 1 . . . 9 . 5 . 8 60 . 13 . . . . . . . . . . . Impact Corruptions 1 | . . . . . . 1 . . . . . . . . . . . . . . . . . . . . . . . . . . . . . Robots Melted 3 | . . . . . . . . . . . . . . . . . 3 . . . . . . . . . . . . . . . . . . Combat Hostiles 3 | . . . . . . . . . . . . . . . . . 3 . . . . . . . . . . . . . . . . . . Parts Melted 17 | . 1 . . . . . . . . . . . . . . . 12 . . . . . . . . . . . . . 1 . . 1 2 Heat Transferred 11474 | . 1300 854 . . . . . . . . . . 250 . 111 1036 3794 . 50 . 250 1350 . . . . . . . . 481 592 . 1406 . Parts Sabotaged 1 | . . . . . . . . . . . . . . . . . . . . . . . . . . . . . . . . . . . 1 Parts Stolen . | . . . . . . . . . . . . . . . . . . . . . . . . . . . . . . . . . . . . Parts Stripped . | . . . . . . . . . . . . . . . . . . . . . . . . . . . . . . . . . . . . Power Chain Reactions 13 | . . . . . . . . . . . . . 2 . . . 1 . 1 . 1 7 . 1 . . . . . . . . . . . Missiles Intercepted . | . . . . . . . . . . . . . . . . . . . . . . . . . . . . . . . . . . . . Alert | -11 -10 -10 -10 -9 -8 -7 -7 -7 -7 -6 -6 -6 -6 -6 -6 -5 -5 -5 -5 -5 -4 -4 -4 -4 -4 -4 -4 -3 -3 -3 -3 -2 -2 -2 -1 ------- Run | Jun Mat Min Exi Min Mat Fac Low Low Dat Pro Fac Low Low Zio Dee Pro Fac Upp Upp War Pro Fac Was Fac Upp Upp Zhi Pro Res Qua Gar Res Tes Sec Acc Peak Influence 1659 | . 155 70 . 70 288 420 . . . . 377 . . . . . 1087 . . . . 1659 479 1029 . . . . 1343 801 567 492 373 924 964 Initial 594 | . . . . . 22 75 . . . . . . . . . . 17 . . . . 31 473 295 . . . . 269 594 30 277 240 16 421 Average 390 | . 53 27 . . 131 116 . . . . 212 . . . . . 559 . . . . 829 477 532 . . . . 944 98 346 385 122 597 424 Maximum Alert Level 5 | . . . . . 1 2 . . . . 1 . . . . . 3 . . . . 5 2 3 . . . . 4 3 2 2 1 3 3 Low Security (%) 43 | . 100 100 . 100 93 90 . . . . 61 . . . . . 21 . . . . 12 . 4 . . . . . 87 26 . 66 8 21 Level 1 15 | . . . . . 6 8 . . . . 38 . . . . . 20 . . . . 18 . 14 . . . . 8 . 22 78 33 16 20 Level 2 19 | . . . . . . 1 . . . . . . . . . . 17 . . . . 15 100 58 . . . . 4 7 50 21 . 30 40 Level 3 17 | . . . . . . . . . . . . . . . . . 41 . . . . 14 . 22 . . . . 53 3 . . . 44 16 Level 4 4 | . . . . . . . . . . . . . . . . . . . . . . 36 . . . . . . 32 . . . . . . Level 5 . | . . . . . . . . . . . . . . . . . . . . . . 3 . . . . . . . . . . . . . High Security . | . . . . . . . . . . . . . . . . . . . . . . . . . . . . . . . . . . . . Max Security . | . . . . . . . . . . . . . . . . . . . . . . . . . . . . . . . . . . . . Squads Dispatched 103 | . . . . . 1 3 . . . . 2 . . . . . 11 . . . . 12 . 7 . . . . 11 10 . 1 7 15 23 Investigation 8 | . . . . . . 1 . . . . 1 . . . . . 1 . . . . 1 . 1 . . . . 1 . . . . 1 1 Extermination 47 | . . . . . . 2 . . . . 1 . . . . . 3 . . . . 3 . 5 . . . . 4 10 . . 4 8 7 Reinforcement 20 | . . . . . 1 . . . . . . . . . . . 3 . . . . 4 . 1 . . . . . . . 1 2 2 6 Assault 18 | . . . . . . . . . . . . . . . . . 3 . . . . 3 . . . . . . 6 . . . 1 4 1 Garrison 10 | . . . . . . . . . . . . . . . . . 1 . . . . 1 . . . . . . . . . . . . 8 Intercept . | . . . . . . . . . . . . . . . . . . . . . . . . . . . . . . . . . . . . Searches Triggered . | . . . . . . . . . . . . . . . . . . . . . . . . . . . . . . . . . . . . Data Miner Redirects 8 | . . . . . . . . . . . . . . . . . 1 . . . . . . . . . . . 2 . . . 1 1 3 Construction Impeded 1 | . . . . . . . . . . . . . . . . . . . . . . . . . . . . . . . . . . . 1 Haulers Reinforced 6 | . . . . . . . . . . . . . . . . . . . . . . 2 . . . . . . . . . 1 . . 3 Active Scanning Responses . | . . . . . . . . . . . . . . . . . . . . . . . . . . . . . . . . . . . . Cargo Convoy Interrupts 3 | . . . . . . 1 . . . . . . . . . . 1 . . . . 1 . . . . . . . . . . . . . Stealth | -11 -10 -10 -10 -9 -8 -7 -7 -7 -7 -6 -6 -6 -6 -6 -6 -5 -5 -5 -5 -5 -4 -4 -4 -4 -4 -4 -4 -3 -3 -3 -3 -2 -2 -2 -1 --------- Run | Jun Mat Min Exi Min Mat Fac Low Low Dat Pro Fac Low Low Zio Dee Pro Fac Upp Upp War Pro Fac Was Fac Upp Upp Zhi Pro Res Qua Gar Res Tes Sec Acc Distress Signals 20 | . . 2 . . 1 . . . . . . . . . . . 1 . . . . 2 . 1 . . . . . . . 3 . 5 5 Communications Jammed 33 | . . . . . . . . . . . . . . . . . . . . . . 9 . 9 . . . . . . . . . . 15 Distress Signals 32 | . . . . . . . . . . . . . . . . . . . . . . 9 . 8 . . . . . . . . . . 15 Times Spotted 789 | . 14 15 21 4 20 29 15 6 . 4 10 8 9 . 31 15 78 1 3 5 13 72 . 36 7 4 . 9 48 30 29 24 26 82 121 Peak Tracking Total 21 | . 3 7 9 4 6 5 4 5 . 4 3 6 4 . 21 4 8 1 2 5 8 6 . 4 4 2 . 5 5 4 5 5 4 9 6 Tactical Retreats 24 | . 1 1 3 . . 1 . . . . 1 . . . 1 . 5 . . . 1 . . . . . . . 2 1 . 1 . 2 4 Traps | -11 -10 -10 -10 -9 -8 -7 -7 -7 -7 -6 -6 -6 -6 -6 -6 -5 -5 -5 -5 -5 -4 -4 -4 -4 -4 -4 -4 -3 -3 -3 -3 -2 -2 -2 -1 ------- Run | Jun Mat Min Exi Min Mat Fac Low Low Dat Pro Fac Low Low Zio Dee Pro Fac Upp Upp War Pro Fac Was Fac Upp Upp Zhi Pro Res Qua Gar Res Tes Sec Acc Traps Triggered 19 | . 2 . . . 3 . . . . . 1 . . . . . 1 . . . . 3 . 4 . . . . . . . . 1 . 4 Indirectly 1 | . . . . . . . . . . . . . . . . . 1 . . . . . . . . . . . . . . . . . . Trap Hack Attempts . | . . . . . . . . . . . . . . . . . . . . . . . . . . . . . . . . . . . . Triggered . | . . . . . . . . . . . . . . . . . . . . . . . . . . . . . . . . . . . . Disarmed 24 | . . . . . . . . . . . . . . . . . . . . . . . . . . . . . . 6 . . . 18 . Reprogrammed 40 | . . . . . . . . . . . 4 . . . . . . . . . . . . . . . . . . 4 . . 18 10 4 Reused 60 | . . . . . 4 4 . . . . . . . . . . 20 . . . . 8 . 6 . . . . 8 . . . 7 1 2 Traps Reconfigurated 249 | . . . . . 7 14 . . . . . . . . . . 80 . . . . 54 . 48 . . . . 21 . 25 . . . . Traps Extracted . | . . . . . . . . . . . . . . . . . . . . . . . . . . . . . . . . . . . . Installed . | . . . . . . . . . . . . . . . . . . . . . . . . . . . . . . . . . . . . Triggered 72 | . . . . . 5 4 . . . . . . . . . . 20 . . 6 1 8 . 6 . 3 . . 8 . . . 8 1 2 Exploded 2 | . . . . . 2 . . . . . . . . . . . . . . . . . . . . . . . . . . . . . . Machines | -11 -10 -10 -10 -9 -8 -7 -7 -7 -7 -6 -6 -6 -6 -6 -6 -5 -5 -5 -5 -5 -4 -4 -4 -4 -4 -4 -4 -3 -3 -3 -3 -2 -2 -2 -1 ---------- Run | Jun Mat Min Exi Min Mat Fac Low Low Dat Pro Fac Low Low Zio Dee Pro Fac Upp Upp War Pro Fac Was Fac Upp Upp Zhi Pro Res Qua Gar Res Tes Sec Acc Machines Disabled 70 | . . . 7 . 1 . . . . . . . 1 . 3 . 6 . . . 1 14 . 2 1 . . . 4 8 3 . 2 9 8 Max in Single Turn 6 | . . . 2 . 1 . . . . . . . 1 . . . 2 . . . 1 6 . 1 1 . . . 1 1 1 . 1 1 1 Garrison Access 9 | . . . . . . . . . . . 1 . . . . . 3 . . . . 1 . . . . . . . . . 2 1 . 1 Garrison Relay 2 | . . . . . . . . . . . . . . . . . . . . . . . . . . . . . . . 2 . . . . Machines Repaired . | . . . . . . . . . . . . . . . . . . . . . . . . . . . . . . . . . . . . Machines Sabotaged 7 | . . . . . . . . . . . . . . . . . 2 . . . . 2 . . . . . . . 1 . . . . 2 Overloaded Fab Kills . | . . . . . . . . . . . . . . . . . . . . . . . . . . . . . . . . . . . . Hacking | -11 -10 -10 -10 -9 -8 -7 -7 -7 -7 -6 -6 -6 -6 -6 -6 -5 -5 -5 -5 -5 -4 -4 -4 -4 -4 -4 -4 -3 -3 -3 -3 -2 -2 -2 -1 --------- Run | Jun Mat Min Exi Min Mat Fac Low Low Dat Pro Fac Low Low Zio Dee Pro Fac Upp Upp War Pro Fac Was Fac Upp Upp Zhi Pro Res Qua Gar Res Tes Sec Acc Machines Accessed 185 | . 4 1 1 . 5 6 . . 1 . 7 . . . . . 23 3 . 10 . 24 . 19 1 . 7 1 11 18 2 2 14 16 9 Terminals 115 | . 4 . . . 3 4 . . . . 5 . . . . . 14 1 . . . 16 . 15 . . . 1 7 13 2 1 11 13 5 Fabricators 6 | . . . . . . . . . . . . . . . . . 1 . . . . 1 . 2 . . . . . . . . . . 2 Repair Stations 13 | . . . . . 1 . . . . . 1 . . . . . 2 . . . . 2 . 1 . . . . 1 2 . . 1 1 1 Recycling Units . | . . . . . . . . . . . . . . . . . . . . . . . . . . . . . . . . . . . . Scanalyzers 14 | . . . . . 1 1 . . . . . . . . . . 3 . . . . 2 . 1 . . . . 2 2 . . 1 1 . Garrison Access 14 | . . . . . . 1 . . . . 1 . . . . . 3 . . . . 3 . . . . . . 1 1 . 1 1 1 1 Total Hacks 1181 | . 6 1 1 . 66 31 . . 6 . 34 . . . . . 168 9 . 17 . 163 . 82 1 . 18 8 75 211 9 15 70 82 108 Successful 1029 | . 5 1 1 . 47 24 . . 6 . 34 . . . . . 135 9 . 17 . 137 . 82 1 . 18 8 75 208 9 15 70 73 54 Failed 151 | . 1 . . . 19 7 . . . . . . . . . . 33 . . . . 26 . . . . . . . 2 . . . 9 54 Catastrophic 28 | . . . . . 6 1 . . . . . . . . . . 5 . . . . 1 . . . . . . . . . . . . 15 Database Lockouts 1 | . . . . . . . . . . . . . . . . . . . . . . . . . . . . . . 1 . . . . . Manual 338 | . . . 1 . 8 10 . . . . 5 . 1 4 . . 35 . . 2 . 63 . 17 . . . . 20 45 7 7 26 32 55 Terminals 737 | . 6 . . . 16 27 . . . . 17 . . . . . 107 1 . . . 105 . 71 . . . 8 48 104 9 14 62 56 86 Fabricators 37 | . . . . . . . . . . . . . . . . . 5 . . . . 9 . 7 . . . . . . . . . . 16 Repair Stations 87 | . . . . . 6 . . . . . 14 . . . . . 6 . . . . 4 . 2 . . . . 4 37 . . 2 10 2 Recycling Units . | . . . . . . . . . . . . . . . . . . . . . . . . . . . . . . . . . . . . Scanalyzers 214 | . . . . . 44 1 . . . . . . . . . . 42 . . . . 29 . 2 . . . . 19 69 . . 3 5 . Garrison Access 54 | . . . . . . 3 . . . . 3 . . . . . 8 . . . . 16 . . . . . . 4 1 . 1 3 11 4 Terminal Hacks 626 | . 5 1 1 . 6 19 . . 6 . 17 . . . . . 72 9 . 17 . 69 . 64 1 . 18 8 46 99 9 13 57 46 43 Record 57 | . . . . . . . . . 6 . 1 . . . . . 1 8 . 15 . 1 . 1 . . 8 8 2 6 . . . . . Part Schematic 100 | . . . . . . 3 . . . . 4 . . . . . 17 . . . . 15 . 12 . . 3 . 1 31 . 1 10 3 . Robot Schematic 12 | . . . . . . . . . . . . . . . . . . . . . . 4 . 1 . . . . . 2 . . 5 . . Robot Analysis 24 | . . . . . . 1 . . . . . . . . . . 3 . . . . 6 . 1 . . 3 . 3 1 . 1 3 . 2 Prototype ID Bank 39 | . . . . . . . . . . . 2 . . . . . 8 . . . . 3 . 2 . . 4 . 4 6 . 1 4 4 1 Open Door 10 | . . 1 . . . . . . . . . . . . . . . 1 . 2 . . . . 1 . . . . 1 . . 1 3 . Open DSF 1 | . . . . . . . . . . . . . . . . . . . . . . . . 1 . . . . . . . . . . . Level Access Points 10 | . . . . . 1 1 . . . . 1 . . . . . 1 . . . . 1 . . . . . . . 1 . 1 1 . 2 Branch Access Points 18 | . 1 . . . 1 2 . . . . 1 . . . . . 1 . . . . 1 . 1 . . . . 3 2 . 1 1 1 2 Emergency Access Points 23 | . . . . . . . . . . . . . . . . . 2 . . . . 2 . 3 . . . . 4 2 . 1 3 5 1 Machine Index 18 | . . . . . . 1 . . . . 1 . . . . . 1 . . . . 2 . 2 . . . . 2 4 . 1 2 1 1 Terminal Index 3 | . . . . . . 1 . . . . . . . . . . 1 . . . . 1 . . . . . . . . . . . . . Repair Station Index 1 | . . . . . . . . . . . 1 . . . . . . . . . . . . . . . . . . . . . . . . Scanalyzer Index 4 | . . . . . . . . . . . 1 . . . . . 1 . . . . 1 . . . . . . 1 . . . . . . Garrison Index 1 | . . . . . . . . . . . . . . . . . . . . . . . . . . . . . . . . . . . 1 Alert Level 31 | . . . . . 1 . . . . . 1 . . . . . 2 . . . . 1 . 6 . . . . . 9 2 1 3 1 4 Unreport Threat 52 | . . . . . . . . . . . . . . . . . 8 . . . . 6 . 7 . . . . . 8 4 . 5 . 14 Locate Traps 41 | . 1 . . . 1 1 . . . . 1 . . . . . 8 . . . . 6 . 9 . . . . 4 3 . . 2 3 2 Disarm Traps 4 | . . . . . . . . . . . . . . . . . . . . . . . . . . . . . . 1 . . . 3 . Reprogram Traps 10 | . . . . . . . . . . . 1 . . . . . . . . . . . . . . . . . . 2 . . 3 3 1 Dispatch Records 24 | . . . . . . . . . . . . . . . . . 1 . . . . 3 . 2 . . . . 6 4 . 1 2 3 2 Maintenance Status 1 | . . . . . . . . . . . . . . . . . 1 . . . . . . . . . . . . . . . . . . Security Status 2 | . . . . . . . . . . . . . . . . . . . . . . 1 . . . . . . . . . . . 1 . Surveillance Status 1 | . . . . . . . . . . . . . . . . . . . . . . . . . . . . . . 1 . . . . . Patrol Status 1 | . . . . . . . . . . . . . . . . . . . . . . . . . . . . . 1 . . . . . . Recall Investigation 3 | . . . . . . . . . . . . . . . . . 2 . . . . 1 . . . . . . . . . . . . . Recall Extermination 16 | . . . . . . . . . . . 1 . . . . . . . . . . 1 . 1 . . . . 2 7 . . . 3 1 Recall Reinforcements 10 | . . . . . . 1 . . . . . . . . . . 3 . . . . 1 . 1 . . . . . . . 1 2 1 . Recall Assault 6 | . . . . . . . . . . . . . . . . . 1 . . . . 1 . . . . . . 3 . . . . 1 . Hauler Manifests 26 | . 1 . . . . 2 . . . . 1 . . . . . 3 . . . . 5 . 3 . . . . 2 2 . 1 2 2 2 Registered Components 13 | . 1 . . . . 1 . . . . . . . . . . 1 . . . . 1 . 2 . . . . 2 1 . 1 1 1 1 Registered Prototypes 12 | . . . . . 1 1 . . . . . . . . . . 1 . . . . 1 . 2 . . . . 2 1 . . 1 1 1 Zone Layout 47 | . 1 . . . 1 4 . . . . . . . . . . 5 . . . . 4 . 7 . . . . 4 4 . 1 5 6 5 Garrison Registry 1 | . . . . . . . . . . . . . . . . . . . . . . . . . . . . . . . 1 . . . . Security Stations 2 | . . . . . . . . . . . . . . . . . . . . . . . . . . . . . . . 2 . . . . EX-Prototype ID Bank 1 | . . . 1 . . . . . . . . . . . . . . . . . . . . . . . . . . . . . . . . Protovariant Controls 1 | . . . . . . . . . . . . . . . . . . . . . . . . . . . . . . . . . 1 . . Fabricator Hacks 16 | . . . . . . . . . . . . . . . . . 2 . . . . 6 . 4 . . . . . . . . . . 4 Network Status 7 | . . . . . . . . . . . . . . . . . . . . . . 3 . 2 . . . . . . . . . . 2 Load Schematic 4 | . . . . . . . . . . . . . . . . . 1 . . . . 1 . 1 . . . . . . . . . . 1 Build 5 | . . . . . . . . . . . . . . . . . 1 . . . . 2 . 1 . . . . . . . . . . 1 Repair Station Hacks 84 | . . . . . 4 . . . . . 14 . . . . . 6 . . . . 4 . 2 . . . . 4 36 . . 2 10 2 Scan Component 42 | . . . . . 2 . . . . . 7 . . . . . 3 . . . . 2 . 1 . . . . 2 18 . . 1 5 1 Repair 42 | . . . . . 2 . . . . . 7 . . . . . 3 . . . . 2 . 1 . . . . 2 18 . . 1 5 1 Recycling Unit Hacks . | . . . . . . . . . . . . . . . . . . . . . . . . . . . . . . . . . . . . Scanalyzer 198 | . . . . . 36 . . . . . . . . . . . 35 . . . . 29 . 2 . . . . 19 69 . . 3 5 . Insert Component 92 | . . . . . 16 . . . . . . . . . . . 15 . . . . 15 . 1 . . . . 10 31 . . 2 2 . Analyze 106 | . . . . . 20 . . . . . . . . . . . 20 . . . . 14 . 1 . . . . 9 38 . . 1 3 . Garrison Access Hacks 7 | . . . . . . . . . . . 1 . . . . . 3 . . . . 1 . . . . . . . 1 . 1 . . . Unlock Access 1 | . . . . . . . . . . . . . . . . . . . . . . . . . . . . . . 1 . . . . . Seal Access 6 | . . . . . . . . . . . 1 . . . . . 3 . . . . 1 . . . . . . . . . 1 . . . Unauthorized Hacks 98 | . . . . . 1 5 . . . . 2 . . . . . 17 . . . . 28 . 10 . . . . 6 3 . 1 8 12 5 Terminals 51 | . . . . . 1 1 . . . . . . . . . . 9 . . . . 15 . 7 . . . . 2 2 . 1 5 8 . Track 7 | . . . . . . . . . . . . . . . . . . . . . . 3 . 2 . . . . . . . . . 2 . Assimilate 17 | . . . . . 1 . . . . . . . . . . . 3 . . . . 5 . 2 . . . . 1 1 . . 1 3 . Botnet 12 | . . . . . . 1 . . . . . . . . . . 3 . . . . 4 . . . . . . . . . . 2 2 . Disrupt 4 | . . . . . . . . . . . . . . . . . . . . . . 2 . . . . . . 1 . . . . 1 . Operators 11 | . . . . . . . . . . . . . . . . . 3 . . . . 1 . 3 . . . . . 1 . 1 2 . . Fabricators 12 | . . . . . . . . . . . . . . . . . 3 . . . . 3 . 3 . . . . . . . . . . 3 Report 4 | . . . . . . . . . . . . . . . . . 1 . . . . 1 . 1 . . . . . . . . . . 1 Prioritize 4 | . . . . . . . . . . . . . . . . . 1 . . . . 1 . 1 . . . . . . . . . . 1 Haulers 4 | . . . . . . . . . . . . . . . . . 1 . . . . 1 . 1 . . . . . . . . . . 1 Repair Stations 1 | . . . . . . . . . . . . . . . . . . . . . . . . . . . . . . 1 . . . . . Mechanics 1 | . . . . . . . . . . . . . . . . . . . . . . . . . . . . . . 1 . . . . . Recycling Units . | . . . . . . . . . . . . . . . . . . . . . . . . . . . . . . . . . . . . Scanalyzers 1 | . . . . . . 1 . . . . . . . . . . . . . . . . . . . . . . . . . . . . . Extract 1 | . . . . . . 1 . . . . . . . . . . . . . . . . . . . . . . . . . . . . . Garrison Access 33 | . . . . . . 3 . . . . 2 . . . . . 5 . . . . 10 . . . . . . 4 . . . 3 4 2 Broadcast 11 | . . . . . . 1 . . . . 1 . . . . . 2 . . . . 3 . . . . . . 1 . . . 1 1 1 Decoy 2 | . . . . . . . . . . . . . . . . . . . . . . 1 . . . . . . . . . . . 1 . Redirect 2 | . . . . . . . . . . . . . . . . . . . . . . . . . . . . . 1 . . . . 1 . Reprogram 3 | . . . . . . . . . . . . . . . . . . . . . . 2 . . . . . . . . . . . . 1 Intercept 6 | . . . . . . 1 . . . . . . . . . . 1 . . . . 2 . . . . . . 1 . . . 1 . . Watchers 9 | . . . . . . 1 . . . . 1 . . . . . 2 . . . . 2 . . . . . . 1 . . . 1 1 . Data Cores Recovered 6 | . . . . . . . . . . . 1 . . . . . 1 . . . . 2 . . . . . . . 1 . . . 1 . Used 4 | . . . . . . . . . . . 1 . . . . . 1 . . . . . . . . . . . . 1 . . . 1 . Hacking Detections 38 | . 2 . . . 4 . . . . . . . . . . . 7 . . . . 4 . 1 . . . . . 1 . 1 6 7 5 Full Trace Events 3 | . . . . . . . . . . . . . . . . . 1 . . . . 1 . 1 . . . . . . . . . . . Feedback Events . | . . . . . . . . . . . . . . . . . . . . . . . . . . . . . . . . . . . . Feedback Blocked . | . . . . . . . . . . . . . . . . . . . . . . . . . . . . . . . . . . . . Robot Schematics Acquired 21 | . . . . . . . . . . . . . . 2 . . . . . . . 4 . 1 . . . . . 5 . . 6 3 . Robots Built 1 | . . . . . . . . . . . . . . . . . . . . . . 1 . . . . . . . . . . . . . Authchips . | . . . . . . . . . . . . . . . . . . . . . . . . . . . . . . . . . . . . Time 46 | . . . . . . . . . . . . . . . . . . . . . . 46 . . . . . . . . . . . . . Total Robot Build Rating 7 | . . . . . . . . . . . . . . . . . . . . . . 7 . . . . . . . . . . . . . Part Schematics Acquired 244 | . . . . . 16 4 . . . . 4 . . 15 . . 30 . . . . 27 . 13 . . 3 . 9 66 . 1 31 25 . Parts Built 5 | . . . . . . . . . . . . . . . . . 1 . . . . 2 . 1 . . . . . . . . . . 1 Authchips 1 | . . . . . . . . . . . . . . . . . . . . . . . . . . . . . . . . . . . 1 Time 224 | . . . . . . . . . . . . . . . . . 102 . . . . 34 . 51 . . . . . . . . . . 37 Total Part Build Rating 43 | . . . . . . . . . . . . . . . . . 8 . . . . 18 . 8 . . . . . . . . . . 9 Parts Repaired 42 | . . . . . 2 . . . . . 7 . . . . . 3 . . . . 2 . 1 . . . . 2 18 . . 1 5 1 Time 3268 | . . . . . 105 . . . . . 522 . . . . . 260 . . . . 113 . 108 . . . . 192 1639 . . 54 239 36 Parts Recycled . | . . . . . . . . . . . . . . . . . . . . . . . . . . . . . . . . . . . . Recycled Matter . | . . . . . . . . . . . . . . . . . . . . . . . . . . . . . . . . . . . . Retrieved Matter . | . . . . . . . . . . . . . . . . . . . . . . . . . . . . . . . . . . . . Retrieved Components . | . . . . . . . . . . . . . . . . . . . . . . . . . . . . . . . . . . . . Parts Scanalyzed 65 | . . . . . 16 . . . . . . . . . . . 13 . . . . 12 . 1 . . . . 8 12 . . 1 2 . Part Schematics Acquired 78 | . . . . . 16 . . . . . . . . . . . 13 . . . . 12 . 1 . . . . 8 25 . . 1 2 . Parts Damaged 12 | . . . . . 3 . . . . . . . . . . . 1 . . . . 2 . . . . . . 2 4 . . . . . Bothacking | -11 -10 -10 -10 -9 -8 -7 -7 -7 -7 -6 -6 -6 -6 -6 -6 -5 -5 -5 -5 -5 -4 -4 -4 -4 -4 -4 -4 -3 -3 -3 -3 -2 -2 -2 -1 ------------ Run | Jun Mat Min Exi Min Mat Fac Low Low Dat Pro Fac Low Low Zio Dee Pro Fac Upp Upp War Pro Fac Was Fac Upp Upp Zhi Pro Res Qua Gar Res Tes Sec Acc Used RIF Installer . | . . . . . . . . . . . . . . . . . . . . . . . . . . . . . . . . . . . . Robots Hacked 9 | . . . . . . . . . . . . . . 2 3 . . . . . . 1 . . . . . . . . . 1 1 1 . Non-combat 1 | . . . . . . . . . . . . . . . . . . . . . . 1 . . . . . . . . . . . . . Combat 8 | . . . . . . . . . . . . . . 2 3 . . . . . . . . . . . . . . . . 1 1 1 . Robot Hacks Applied 9 | . . . . . . . . . . . . . . 2 3 . . . . . . 1 . . . . . . . . . 1 1 1 . parse_system 8 | . . . . . . . . . . . . . . 2 3 . . . . . . . . . . . . . . . . 1 1 1 . no_distress 1 | . . . . . . . . . . . . . . . . . . . . . . 1 . . . . . . . . . . . . . Relay Couplers Released 21 | . . . . . . . . . . . . . . . . . . . . . . . . . . . . . . . 7 6 1 . 7 Machine Destruction 14 | . . . . . . . . . . . . . . . . . . . . . . . . . . . . . . . 7 2 1 . 4 Programmers 7 | . . . . . . . . . . . . . . . . . . . . . . . . . . . . . . . . 4 . . 3 Fabnet Peak Effective % . | . . . . . . . . . . . . . . . . . . . . . . . . . . . . . . . . . . . . Robots Rewired 27 | . . . . . . . . . . . . 2 5 . 4 . . 1 . . 5 5 . 1 . . . . . . . . . 4 . Allies Hacked 3 | . . . . . . . . . . . . . . . . . . . . . . . . . . . . . . . . . . 3 . Hacks Repelled 1 | . . . . . . . . . . . . . . . . . . . . . . . . . . . . . . . . . . 1 . Allies | -11 -10 -10 -10 -9 -8 -7 -7 -7 -7 -6 -6 -6 -6 -6 -6 -5 -5 -5 -5 -5 -4 -4 -4 -4 -4 -4 -4 -3 -3 -3 -3 -2 -2 -2 -1 -------- Run | Jun Mat Min Exi Min Mat Fac Low Low Dat Pro Fac Low Low Zio Dee Pro Fac Upp Upp War Pro Fac Was Fac Upp Upp Zhi Pro Res Qua Gar Res Tes Sec Acc Total Allies 41 | . . . . . 1 . . . . 1 . 2 5 . 5 . 1 1 . . 5 6 3 2 . . . . . . . . . 8 1 Largest Group 11 | . . . . . 1 1 . . . 1 1 2 7 7 11 11 6 1 1 . 5 6 4 4 1 1 1 1 1 . . . . 5 1 Highest-Rated Group 581 | . . . . . 10 10 . . . 96 96 49 220 220 581 573 225 49 49 . 236 262 178 180 22 22 22 22 22 . . . . 324 58 Highest-Rated Ally 136 | . . . . . 10 10 . . . 96 96 29 41 41 119 111 64 49 49 . 64 64 48 49 22 22 22 22 22 . . . . 136 58 Total Orders 18 | . . . . . . . . . . . . . . . 6 . . . . 2 4 1 . 1 . . . . . 1 . . . 3 . STAY 3 | . . . . . . . . . . . . . . . 3 . . . . . . . . . . . . . . . . . . . . FOLLOW 5 | . . . . . . . . . . . . . . . 3 . . . . 1 . . . . . . . . . . . . . 1 . AID 2 | . . . . . . . . . . . . . . . . . . . . . . 1 . 1 . . . . . . . . . . . DROP 1 | . . . . . . . . . . . . . . . . . . . . . . . . . . . . . . . . . . 1 . COLLECT 1 | . . . . . . . . . . . . . . . . . . . . . . . . . . . . . . . . . . 1 . EXPLORE 5 | . . . . . . . . . . . . . . . . . . . . 1 3 . . . . . . . . 1 . . . . . RETURN 1 | . . . . . . . . . . . . . . . . . . . . . 1 . . . . . . . . . . . . . . Ally Attacks 282 | . . . . . . . . . . 5 7 . 4 . 103 80 23 . 1 . 3 6 . 1 . . . . . . . . . 37 12 Total Damage 9042 | . . . . . . . . . . 46 346 . 57 . 4856 1689 472 . 51 . 168 120 . 30 . . . . . . . . . 979 228 Kills 43 | . . . . . . . . . . 1 3 . 1 . 17 11 3 . . . . . . . . . . . . . . . . 7 . Allies Corrupted 7 | . . . . . . . . . . . . . . . . . . . . . . 3 . 2 . . . . . . . . . 2 . Allies Melted 3 | . . . . . . . . . . . 1 . . . . . . . . 1 . 1 . . . . . . . . . . . . . Intel | -11 -10 -10 -10 -9 -8 -7 -7 -7 -7 -6 -6 -6 -6 -6 -6 -5 -5 -5 -5 -5 -4 -4 -4 -4 -4 -4 -4 -3 -3 -3 -3 -2 -2 -2 -1 ------- Run | Jun Mat Min Exi Min Mat Fac Low Low Dat Pro Fac Low Low Zio Dee Pro Fac Upp Upp War Pro Fac Was Fac Upp Upp Zhi Pro Res Qua Gar Res Tes Sec Acc Robot Analysis Total 24 | . . . . . . 1 . . . . . . . . . . 3 . . . . 6 . 1 . . 3 . 3 1 . 1 3 . 2 Derelict Logs Recovered 22 | . . . . 1 . . 2 2 . 2 . 2 2 1 . 1 . 2 1 . 1 . . . 3 2 . . . . . . . . . Drone Launches 38 | . . . . . . . . . . . . . . . . . . . . 3 26 . . . . . . . . 9 . . . . . Drone Recoveries 29 | . . . . . . . . . . . . . . . . . . . . 1 24 . . . . . . . . 4 . . . . . Exploration | -11 -10 -10 -10 -9 -8 -7 -7 -7 -7 -6 -6 -6 -6 -6 -6 -5 -5 -5 -5 -5 -4 -4 -4 -4 -4 -4 -4 -3 -3 -3 -3 -2 -2 -2 -1 ------------- Run | Jun Mat Min Exi Min Mat Fac Low Low Dat Pro Fac Low Low Zio Dee Pro Fac Upp Upp War Pro Fac Was Fac Upp Upp Zhi Pro Res Qua Gar Res Tes Sec Acc Turns Passed 36600 | . 1274 715 1691 685 1100 1049 362 243 17 404 770 215 341 547 1096 1053 2412 326 234 458 691 1864 74 1386 360 230 103 228 2168 4257 1681 729 1378 2865 3594 Spaces Moved 34820 | 1 451 242 691 342 546 820 1155 764 66 552 712 609 644 909 1729 1165 3342 827 589 680 1049 2864 115 1842 807 566 188 511 1581 1878 1106 377 1336 2181 1583 Core . | . . . . . . . . . . . . . . . . . . . . . . . . . . . . . . . . . . . . Treads 1933 | . . 28 441 . . . . . . . . . . . . . . . . . . . . . . . . . . 112 76 7 . 1039 230 Legs 9124 | 1 451 214 250 342 546 470 . . . . . . . . . . . . . . . . . 8 . . . . 1198 1766 1030 370 1336 1142 . Wheels 1353 | . . . . . . . . . . . . . . . . . . . . . . . . . . . . . . . . . . . 1353 Hover 16246 | . . . . . . . . . . . . . . . 1326 1165 3342 827 589 680 1049 2864 115 1834 807 566 188 511 383 . . . . . . Flight 6164 | . . . . . . 350 1155 764 66 552 712 609 644 909 403 . . . . . . . . . . . . . . . . . . . . Fastest Speed 1 | 120 120 240 120 200 130 26 26 26 26 26 20 20 20 20 10 36 36 36 36 36 34 33 36 30 37 37 31 34 29 110 106 70 65 47 1 Average Speed 67 | 120 244 257 226 200 167 96 26 26 26 26 21 20 20 20 29 37 36 36 36 36 36 35 36 47 37 37 34 35 107 119 119 95 65 80 149 Slowest Speed 400 | 120 400 260 320 200 200 193 26 106 26 26 26 20 20 20 60 40 40 36 36 36 40 81 36 112 37 37 37 37 126 240 240 225 123 160 250 Overloaded Moves . | . . . . . . . . . . . . . . . . . . . . . . . . . . . . . . . . . . . . Propulsion Burnouts . | . . . . . . . . . . . . . . . . . . . . . . . . . . . . . . . . . . . . Robots Hopped 5 | . . . . . . . 1 . . . 3 . 1 . . . . . . . . . . . . . . . . . . . . . . Cave-ins Triggered . | . . . . . . . . . . . . . . . . . . . . . . . . . . . . . . . . . . . . Teleports 2 | . . . . . . . . . . . . . . . . . . . . . . . . . . . . . . . . . 2 . . Exploration Rate (%) 72 | 1 82 50 90 77 57 29 96 86 66 87 20 75 82 86 92 96 76 94 67 97 98 77 83 66 93 84 63 78 45 99 91 7 95 91 44 Regions Visited 35 Branch Regions 23 Pre-discovered Areas 7 | . . . . . . . . . 1 1 . . . . . . . 1 . . . . . . 1 . 3 . . . . . . . . Known Exits Taken 28 | . 1 . . . 1 1 1 1 1 1 1 1 1 1 1 1 1 1 1 1 1 . . 1 1 1 1 1 1 1 . 1 1 1 . Unknown Exits Taken 4 | 1 . 1 1 1 . . . . . . . . . . . . . . . . . . . . . . . . . . . . . . . Scrap Searched 52 | . . 1 . 2 . . 3 2 . 4 . 9 7 4 . 5 . 4 1 . 3 . . . 2 4 . 1 . . . . . . . Spaces Dug 34 | . . . . . . . . 1 . . . . . . . . 7 . . . . 1 . . . 1 . . 4 3 1 . 3 9 4 Terrain Destroyed 487 | . . 50 . . 19 3 1 1 . . 22 14 11 . . 4 30 . 10 . 3 202 3 32 5 2 . 7 21 12 9 1 3 9 13 Melee 17 | . . . . . . . . . . . . . . . . . 1 . . . . . . . . . . . . . . . 3 9 4 Projectile 154 | . . . . . 19 3 1 1 . . . . . . . 4 24 . . . . 21 3 23 5 2 . 7 12 12 9 1 . . 7 AOE 314 | . . 50 . . . . . . . . 22 14 11 . . . 5 . 10 . 3 181 . 9 . . . . 9 . . . . . . Terrain Rammed . | . . . . . . . . . . . . . . . . . . . . . . . . . . . . . . . . . . . . Walls Destroyed . | . . . . . . . . . . . . . . . . . . . . . . . . . . . . . . . . . . . . Machines Disabled . | . . . . . . . . . . . . . . . . . . . . . . . . . . . . . . . . . . . . Actions | -11 -10 -10 -10 -9 -8 -7 -7 -7 -7 -6 -6 -6 -6 -6 -6 -5 -5 -5 -5 -5 -4 -4 -4 -4 -4 -4 -4 -3 -3 -3 -3 -2 -2 -2 -1 --------- Run | Jun Mat Min Exi Min Mat Fac Low Low Dat Pro Fac Low Low Zio Dee Pro Fac Upp Upp War Pro Fac Was Fac Upp Upp Zhi Pro Res Qua Gar Res Tes Sec Acc Total 45877 | . 532 288 792 344 693 1009 1194 786 65 808 1301 689 853 1271 2271 1740 4343 854 610 893 1358 3656 141 2273 853 579 224 539 1965 3834 1359 691 1781 3066 2222 Wait 8029 | . 14 3 38 3 69 56 20 . . 251 546 62 174 352 378 542 782 26 19 188 280 646 22 300 27 8 25 14 227 1631 44 197 301 600 184 Move 34772 | . 450 241 690 341 545 819 1152 763 65 551 706 608 641 908 1728 1164 3340 826 588 679 1048 2864 114 1841 806 565 187 510 1580 1877 1102 376 1335 2180 1582 Hop 4 | . . . . . . . 1 . . . 2 . 1 . . . . . . . . . . . . . . . . . . . . . . Pick Up 250 | . 5 1 19 . 4 11 . 2 . 1 7 . 2 2 26 3 19 . 1 10 . 18 . 11 . . 2 1 17 38 1 2 7 24 16 Fast Attach 426 | . 5 1 10 . 11 12 1 2 . . 8 2 6 1 18 3 18 . . 5 . 8 . 4 4 . 3 . 11 87 59 35 33 31 48 Attach 192 | . 1 4 1 . 12 6 . 1 . . 4 . 1 1 17 2 13 . 1 . 1 10 . 23 . . 1 . 12 19 6 8 6 14 28 Detach 104 | . . 3 3 . 9 6 . 1 . . 1 1 1 2 15 . 2 . . 1 . 6 . 8 . . 2 . 3 16 6 7 2 1 8 Swap 81 | . 1 1 . . 1 . 1 . . . 2 1 . 2 3 3 13 1 . 2 1 15 . 9 1 . . . 3 3 4 . 3 4 7 Drop 489 | . 4 . 8 . 11 7 . 2 . 1 5 2 6 . 37 5 17 . 1 8 . 13 . 8 4 . 3 . 23 104 57 29 36 48 50 Fire 1200 | . 52 32 23 . 30 47 19 15 . 4 20 11 . . 3 16 119 . . . . 64 5 67 11 6 1 14 89 58 70 31 53 98 242 Melee 193 | . . . . . . . . . . . . . 1 3 46 2 2 . . . . 2 . 1 . . . . . . 10 6 5 64 51 Ram 3 | . . . . . . . . . . . . . . . . . . . . . . . . . . . . . . . . . . . 3 Kick 46 | . . . . . 1 45 . . . . . . . . . . . . . . . . . . . . . . . . . . . . . Crush 2 | . . 2 . . . . . . . . . . . . . . . . . . . . . . . . . . . . . . . . . Escape Stasis 3 | . . . . . . . . . . . . . . . . . 3 . . . . . . . . . . . . . . . . . . Rewire 74 | . . . . . . . . . . . . 2 20 . . . 13 1 . . 28 7 . 1 . . . . . . . . . 2 . Trap . | . . . . . . . . . . . . . . . . . . . . . . . . . . . . . . . . . . . . Miscellaneous 9 | . . . . . . . . . . . . . . . . . 2 . . . . 3 . . . . . . . 1 . . . . 3 Route ------- -11/Junkyard -10/Materials (discovered 5 exits: [*Mat x3] / *Min x2) -10/Mines (discovered 2 exits: [*Mat] / *Exi) -10/Exiles -9/Mines -8/Materials (discovered 3 exits: *Fac x3) -7/Factory (discovered 8 exits: Fac x4 / Sto x2 / *Low x2) -7/Lower Caves (discovered 2 exits: *Low / *Zio) -7/Lower Caves (discovered 2 exits: *Fac / *Dat) -7/Data Miner -6/Proximity Caves -6/Factory (discovered 6 exits: Fac x4 / *Low x2) -6/Lower Caves -6/Lower Caves (discovered 2 exits: *Fac / *Zio) -6/Zion (discovered 2 exits: *Dee / *Pro) -6/Deep Caves -5/Proximity Caves -5/Factory (discovered 8 exits: *Fac x4 / *Upp x2 / *Ext x2) -5/Upper Caves -5/Upper Caves (discovered 2 exits: *Fac / *War) -5/Warlord -4/Proximity Caves -4/Factory (discovered 6 exits: *Res x4 / *Upp x2) -4/Waste -4/Factory (discovered 5 exits: *Res x3 / *Upp x2) -4/Upper Caves -4/Upper Caves (discovered 2 exits: *Res / *Zhi) -4/Zhirov -3/Proximity Caves -3/Research (discovered 6 exits: *Res x3 / Arm / *Qua x2) -3/Quarantine (discovered 2 exits: *Res / Gar) -3/Garrison (discovered 3 exits: *Res x3) -2/Research (discovered 5 exits: Acc x3 / *Tes x2) -2/Testing (discovered 2 exits: *Acc / *Sec) -2/Section 7 -1/Access (discovered 2 exits: *Sur / *Com) Tau Ceti IV Orbit History --------- Turn | Location | Event 1 | -11/Junkyard | Discovered new exit (range 0) 1 | -11/Junkyard | Entered Materials 75 | -10/Materials | Identified exit to Mines 252 | -10/Materials | Discovered new exit (range 5) 307 | -10/Materials | Build established: Mutant 494 | -10/Materials | Discovered new exit (range 8) 575 | -10/Materials | Lost 4 parts (1p1n2w) 885 | -10/Materials | Discovered new exit (range 14) 1275 | -10/Materials | Entered Mines 1356 | -10/Mines | Found a damaged Exp. Sensor Array with a note attached 1361 | -10/Mines | Found Prototype Device 1362 | -10/Mines | Identified Exp. Sensor Array 1440 | -10/Mines | Discovered new exit (range 5) 1561 | -10/Mines | Found the Drone Emporium 1573 | -10/Mines | Found Prototype Device 1573 | -10/Mines | Identified Sensor Drone Bay 1744 | -10/Mines | Deemed a non-threat by the Exiles lab entrance 1744 | -10/Mines | Discovered new exit (range 5) 1792 | -10/Mines | Assembled infested the area 1902 | -10/Mines | Lost 3 parts (1p1n1w) 1920 | -10/Mines | Destroyed 7 combat bots 1990 | -10/Mines | Entered Exiles 2058 | -10/Exiles | Met 8R-AWN 2094 | -10/Exiles | Met EX-HEX 2181 | -10/Exiles | Met EX-DEC 2281 | -10/Exiles | Met EX-BIN 2317 | -10/Exiles | Aligned with FarCom system 2320 | -10/Exiles | Given EX-Vault access code 2375 | -10/Exiles | Opened EX-Vault 2394 | -10/Exiles | Found Trap Reconfigurator 2448 | -10/Exiles | Warned to stay clear of 0b10 Research branches 2632 | -10/Exiles | Discovered new exit (range 14) 2889 | -10/Exiles | Visited The Gauntlet 3038 | -10/Exiles | Attacked by the Exiles 3079 | -10/Exiles | Destroyed 7 combat bots 3079 | -10/Exiles | Destroyed 8R-AWN 3119 | -10/Exiles | Core integrity fell below 50% 3121 | -10/Exiles | Core integrity fell below 20% 3122 | -10/Exiles | Found Prototype Ballistic Gun 3122 | -10/Exiles | Identified 8R-AWN's Boregun 3131 | -10/Exiles | Found Prototype Processor 3131 | -10/Exiles | Identified Exp. Targeting Computer 3333 | -10/Exiles | Destroyed EX-HEX 3349 | -10/Exiles | Destroyed EX-DEC 3376 | -10/Exiles | Destroyed EX-BIN 3378 | -10/Exiles | Found Prototype Energy Gun 3378 | -10/Exiles | Identified AWS/EX-DEC 3389 | -10/Exiles | Found Prototype Device 3398 | -10/Exiles | Found Prototype Processor 3526 | -10/Exiles | Found Prototype Protection 3529 | -10/Exiles | Found Prototype Device 3534 | -10/Exiles | Found Prototype Protection 3550 | -10/Exiles | Found 8R-AWN's Boregun 3681 | -10/Exiles | Left Exiles lab with Trap Reconfigurator 3681 | -10/Exiles | Entered Mines 3806 | -9/Mines | Build established: Hauler-Mutant 3873 | -9/Mines | Learned 2 Materials zone layouts 3919 | -9/Mines | Found a hidden stash of uninstalled traps 4222 | -9/Mines | Received a Rocket Launcher from a helpful Derelict 4314 | -9/Mines | Discovered new exit (range 8) 4366 | -9/Mines | Entered Materials 4366 | -8/Materials | Evolved 4 slots: Propulsion x1, Utility x3 4366 | -8/Materials | Identified 8R-AWN's Armor/EX 4368 | -8/Materials | Identified 8R-AWN's Armor/TH 4370 | -8/Materials | Identified System Purifier 4372 | -8/Materials | Identified AS-neutralizer No. 17b 4375 | -8/Materials | Identified Exp. Core Analyzer 4676 | -8/Materials | Discovered new exit (range 15) 4873 | -8/Materials | Repaired Adv. Myomer Leg 4936 | -8/Materials | Repaired Broken Exp. Heat Sink? 5399 | -8/Materials | Discovered new exit (range 8) 5403 | -8/Materials | Identified exit to Factory 5465 | -8/Materials | System corruption reached 10% 5466 | -8/Materials | Entered Factory 5466 | -7/Factory | Accompanied by 1 ally 5466 | -7/Factory | Evolved 2 slots: Propulsion x1, Utility x1 5712 | -7/Factory | Identified exit to Storage 5712 | -7/Factory | Identified exit to Lower Caves 6011 | -7/Factory | Build established: Wizard-Mutant 6301 | -7/Factory | Cargo convoy interrupted 6490 | -7/Factory | Identified exit to Factory 6515 | -7/Factory | Entered Lower Caves 6550 | -7/Lower Caves | A Derelict revealed a hidden shortcut to a safe place 6555 | -7/Lower Caves | Identified exit to Zion 6648 | -7/Lower Caves | Spotted B-75 Beast 6648 | -7/Lower Caves | Destroyed B-75 Beast 6665 | -7/Lower Caves | Identified exit to Lower Caves 6679 | -7/Lower Caves | Build established: Wizard-Sprinter 6695 | -7/Lower Caves | Learned Factory stockpile data 6772 | -7/Lower Caves | Ambushed by wild Derelicts 6877 | -7/Lower Caves | Entered another Lower Caves area 6903 | -7/Lower Caves | Discovered exit to Factory (range 13) 6909 | -7/Lower Caves | Learned Factory terminal intel 6985 | -7/Lower Caves | Found Alien Artifact 7043 | -7/Lower Caves | Spotted B-75 Beast 7044 | -7/Lower Caves | Core integrity fell below 50% 7048 | -7/Lower Caves | Destroyed B-75 Beast 7069 | -7/Lower Caves | Learned Factory emergency access door positions 7074 | -7/Lower Caves | Encountered a Warlord checkpoint 7094 | -7/Lower Caves | Discovered new exit (range 15) 7095 | -7/Lower Caves | Spotted G1-T2Y(f) 7095 | -7/Lower Caves | Spotted Q1-GM3(f) 7095 | -7/Lower Caves | Spotted O3-Z1R(f) 7095 | -7/Lower Caves | Destroyed O3-Z1R(f) 7095 | -7/Lower Caves | Spotted AI-TCA(f) 7096 | -7/Lower Caves | Spotted 0X-0ON(f) 7097 | -7/Lower Caves | Encountered a Master Thief 7097 | -7/Lower Caves | Encountered a Master Thief 7097 | -7/Lower Caves | Encountered a Master Thief 7097 | -7/Lower Caves | Encountered a Master Thief 7099 | -7/Lower Caves | Destroyed AI-TCA(f) 7101 | -7/Lower Caves | Destroyed G1-T2Y(f) 7105 | -7/Lower Caves | Destroyed Q1-GM3(f) 7109 | -7/Lower Caves | Destroyed 0X-0ON(f) 7120 | -7/Lower Caves | Identified exit to Data Miner 7120 | -7/Lower Caves | Entered Data Miner 7120 | -7/Data Miner | Discovered new exit (range 6) 7125 | -7/Data Miner | Met Data Miner 7130 | -7/Data Miner | Learned location of Section 7 (-2) 7130 | -7/Data Miner | Acquired the access code to Warlord's prototype stash 7132 | -7/Data Miner | Received God Mode back door access code from Data Miner 7137 | -7/Data Miner | Identified exit to Proximity Caves 7137 | -7/Data Miner | Entered Proximity Caves 7139 | -6/Proximity Caves | Learned location of Zion (-6) 7182 | -6/Proximity Caves | Learned Factory stockpile data 7392 | -6/Proximity Caves | Received a Behemoth hack from an annoying Tinkerer 7430 | -6/Proximity Caves | Escorted by Enhanced Grunt 7454 | -6/Proximity Caves | Discovered exit to Factory (range 7) 7541 | -6/Proximity Caves | Entered Factory 7541 | -6/Factory | Accompanied by 1 ally 7541 | -6/Factory | Evolved 2 slots: Propulsion x2 7544 | -6/Factory | Loaded intel: 26 terminal locations 7585 | -6/Factory | Identified exit to Lower Caves 7643 | -6/Factory | Identified exit to Factory 7796 | -6/Factory | Repaired Cld. Cesium-ion Thruster 7835 | -6/Factory | Repaired Imp. Datajack 7915 | -6/Factory | Repaired Cld. Cesium-ion Thruster 7995 | -6/Factory | Repaired Cld. Cesium-ion Thruster 8103 | -6/Factory | Repaired Exp. Sensor Array 8171 | -6/Factory | Repaired Adv. Component Analysis Suite 8239 | -6/Factory | Repaired Adv. Weapon Cycler 8311 | -6/Factory | Entered Lower Caves 8332 | -6/Lower Caves | Encountered a Warlord checkpoint 8379 | -6/Lower Caves | Learned Factory security intel 8415 | -6/Lower Caves | Learned Factory emergency access door positions 8486 | -6/Lower Caves | Discovered new exit (range 3) 8486 | -6/Lower Caves | Identified exit to Lower Caves 8493 | -6/Lower Caves | Attracted the attention of an 0b10 outpost 8525 | -6/Lower Caves | Destroyed 7 combat bots 8526 | -6/Lower Caves | Entered another Lower Caves area 8526 | -6/Lower Caves | Accompanied by 2 allies 8538 | -6/Lower Caves | Discovered exit to Factory (range 12) 8559 | -6/Lower Caves | Learned Factory trap positions 8585 | -6/Lower Caves | Destroyed 7 combat bots 8676 | -6/Lower Caves | Attacked by a delusional Derelict stockpiling Unaware 8713 | -6/Lower Caves | Discovered exit to Zion (range 9) 8731 | -6/Lower Caves | Acquired the password to a Derelict Tinkerer's latest research 8733 | -6/Lower Caves | Found Prototype Special Weapon 8817 | -6/Lower Caves | Build established: Hauler-Sprinter 8867 | -6/Lower Caves | Entered Zion 8867 | -6/Zion | Accompanied by 7 allies 8871 | -6/Zion | Found CR-A16's Pointy Stick 8903 | -6/Zion | Given A8's code to call for help 8904 | -6/Zion | Discovered new exit (range 14) 8912 | -6/Zion | Identified exit to Proximity Caves 8989 | -6/Zion | Learned Factory stockpile data 9008 | -6/Zion | Acquired unknown access codes intercepted by a Zionite 9157 | -6/Zion | Opened final containment barrier to the Deep Caves 9160 | -6/Zion | Discovered new exit (range 3) 9160 | -6/Zion | Saw the warning signs outside the Deep Caves entrance 9160 | -6/Zion | Identified exit to Deep Caves 9414 | -6/Zion | Entered Deep Caves 9414 | -6/Deep Caves | Accompanied by 7 allies 9415 | -6/Deep Caves | Met 5H-AD0 9532 | -6/Deep Caves | Z-Facility disabled 9576 | -6/Deep Caves | Attacked by Z-Imprinter 9581 | -6/Deep Caves | Destroyed Z-Imprinter 9593 | -6/Deep Caves | Found Zio. Metafield Generator 9600 | -6/Deep Caves | Identified Molecular Deconstructor 9690 | -6/Deep Caves | Identified Core Expander 9690 | -6/Deep Caves | Installed Core Expander, added new Propulsion slot 9734 | -6/Deep Caves | Found Zio. Weapon Casing 9795 | -6/Deep Caves | Found Prototype Protection 9795 | -6/Deep Caves | Identified Zio. Heavy Carapace 10054 | -6/Deep Caves | Spotted as-17233 10081 | -6/Deep Caves | Found GOLEM Unit 10085 | -6/Deep Caves | Triggered Deep Caves wall 10088 | -6/Deep Caves | Exposed GOLEM chamber 10089 | -6/Deep Caves | Spotted AS-54324 10089 | -6/Deep Caves | Spotted AS-89279 10089 | -6/Deep Caves | Found GOLEM Unit 10091 | -6/Deep Caves | Destroyed AS-54324 10092 | -6/Deep Caves | Spotted as-77765 10097 | -6/Deep Caves | Destroyed AS-89279 10103 | -6/Deep Caves | Found GOLEM Unit 10105 | -6/Deep Caves | Found GOLEM Unit 10198 | -6/Deep Caves | Installed Com. Matter Pod, increased matter storage capacity (+150) 10284 | -6/Deep Caves | Found Zio. Heavy Carapace 10293 | -6/Deep Caves | Found Zio. Weapon Casing 10402 | -6/Deep Caves | Discovered new exit (range 6) 10405 | -6/Deep Caves | Identified exit to Proximity Caves 10491 | -6/Deep Caves | Build established: Commander-Mutant 10510 | -6/Deep Caves | Entered Proximity Caves 10510 | -5/Proximity Caves | Accompanied by 11 allies (5H-AD0) 10515 | -5/Proximity Caves | Thanked by 5H-AD0 10662 | -5/Proximity Caves | Attracted the attention of an 0b10 checkpoint 10716 | -5/Proximity Caves | Learned Factory garrison access intel 10932 | -5/Proximity Caves | Build established: Hauler-Mutant 10985 | -5/Proximity Caves | Spotted B-75 Beast 11001 | -5/Proximity Caves | Allies destroyed B-75 Beast 11127 | -5/Proximity Caves | Discovered exit to Factory (range 6) 11563 | -5/Proximity Caves | Entered Factory 11563 | -5/Factory | Accompanied by 6 allies 11563 | -5/Factory | Evolved 2 slots: Utility x2 11564 | -5/Factory | Identified exit to Upper Caves 11565 | -5/Factory | Loaded intel: 110 trap records 11569 | -5/Factory | Loaded intel: 4 garrison access locations 11677 | -5/Factory | Build established: Scavenger-Mutant 11741 | -5/Factory | Discovered new exit (range 9) 11825 | -5/Factory | Identified exit to Factory 11841 | -5/Factory | Discovered new exit (range 6) 11842 | -5/Factory | Identified exit to Extension 11997 | -5/Factory | Garrison activated, responded to threat 12128 | -5/Factory | Build established: Wizard-Mutant 12137 | -5/Factory | Spotted B-75 Beast 12160 | -5/Factory | Destroyed B-75 Beast 12255 | -5/Factory | Discovered exit to Upper Caves (range 13) 12319 | -5/Factory | Lost 4 parts (2u2w) 12383 | -5/Factory | Cargo convoy interrupted 12415 | -5/Factory | Found Exp. ECM Suite 12423 | -5/Factory | Found Prototype Device 12423 | -5/Factory | Identified Exp. Actuator Array 12463 | -5/Factory | First assault squad dispatched 12517 | -5/Factory | Repaired Exp. Power Shielding? 12609 | -5/Factory | Fabricated Exp. Sensor Array (x1) 12650 | -5/Factory | Repaired Broken Exp. Cooling System 12705 | -5/Factory | Found Exp. Core Analyzer 12709 | -5/Factory | Found Exp. Core Analyzer 12717 | -5/Factory | Found Exp. Core Analyzer 12791 | -5/Factory | Incoming assault squad redirected 13738 | -5/Factory | Destroyed 7 combat bots 13777 | -5/Factory | Repaired Broken Cld. Gravmag System 13975 | -5/Factory | Entered Upper Caves 14030 | -5/Upper Caves | Learned location of 1 exit from Factory 14059 | -5/Upper Caves | Learned location of Warlord (-5) 14092 | -5/Upper Caves | Learned Factory security intel 14092 | -5/Upper Caves | Learned Factory garrison access intel 14115 | -5/Upper Caves | Attracted the attention of an 0b10 checkpoint 14204 | -5/Upper Caves | Discovered new exit (range 4) 14205 | -5/Upper Caves | Identified exit to Upper Caves 14228 | -5/Upper Caves | Encountered a Warlord checkpoint 14301 | -5/Upper Caves | Entered another Upper Caves area 14301 | -5/Upper Caves | Accompanied by 1 ally 14323 | -5/Upper Caves | Discovered exit to Factory (range 7) 14348 | -5/Upper Caves | Encountered a Warlord checkpoint 14471 | -5/Upper Caves | Identified exit to Warlord 14535 | -5/Upper Caves | Entered Warlord 14576 | -5/Warlord | Received a Watcher feed algorithm from an ecstatic Tinkerer 14742 | -5/Warlord | Found Prototype Energy Gun 14772 | -5/Warlord | Learned Research emergency access door positions 14773 | -5/Warlord | Learned 4 Armory zone layouts 14773 | -5/Warlord | Learned 4 Research zone layouts 14773 | -5/Warlord | Learned 4 Research zone layouts 14773 | -5/Warlord | Learned 4 Research zone layouts 14773 | -5/Warlord | Learned Research security intel 14773 | -5/Warlord | Learned Factory fabricator intel 14773 | -5/Warlord | Learned Armory fabricator intel 14773 | -5/Warlord | Learned Research garrison access intel 14808 | -5/Warlord | Warlord's base attacked by MAIN.C 14833 | -5/Warlord | Met Warlord 14850 | -5/Warlord | Found Prototype Energy Cannon 14850 | -5/Warlord | Identified Vortex Driver 14858 | -5/Warlord | Found Vortex Driver 14860 | -5/Warlord | Found Prototype Energy Gun 14861 | -5/Warlord | Found Prototype Energy Gun 14881 | -5/Warlord | Opened Warlord's prototype stash 14883 | -5/Warlord | Found Prototype Reactor 14885 | -5/Warlord | Found Prototype Processor 14887 | -5/Warlord | Found Prototype Hackware 14983 | -5/Warlord | Opened side exit 14990 | -5/Warlord | Discovered new exit (range 10) 14993 | -5/Warlord | Identified exit to Proximity Caves 14993 | -5/Warlord | Entered Proximity Caves 15139 | -4/Proximity Caves | Build established: Hauler-Mutant 15188 | -4/Proximity Caves | Attracted the attention of an 0b10 checkpoint 15213 | -4/Proximity Caves | Spotted B-86 Titan 15224 | -4/Proximity Caves | Destroyed B-86 Titan 15234 | -4/Proximity Caves | Discovered exit to Factory (range 5) 15326 | -4/Proximity Caves | Destroyed 8 combat bots 15383 | -4/Proximity Caves | Learned Research emergency access door positions 15684 | -4/Proximity Caves | Entered Factory 15684 | -4/Factory | Accompanied by 5 allies 15684 | -4/Factory | Evolved 2 slots: Utility x1, Weapon x1 15685 | -4/Factory | Identified exit to Research 15688 | -4/Factory | Loaded intel: 6 fabricator locations 15689 | -4/Factory | Loaded intel: 4 garrison access locations 15704 | -4/Factory | Identified Vortex Rifle (x2) 15758 | -4/Factory | Repaired Exp. Cooling System 15786 | -4/Factory | Spotted B-86 Titan 15938 | -4/Factory | Garrison activated, responded to threat 16163 | -4/Factory | Identified Plasma Storm 16163 | -4/Factory | Identified System Mapper 16163 | -4/Factory | Identified Exp. Target Analyzer 16163 | -4/Factory | Identified Vortex Chain Reactor 16241 | -4/Factory | Build established: Wizard-Scout 16259 | -4/Factory | Repaired Exp. Power Shielding 16309 | -4/Factory | Discovered new exit (range 23) 16441 | -4/Factory | Destroyed 11 combat bots 16496 | -4/Factory | Destroyed 10 combat bots 16499 | -4/Factory | Identified exit to Upper Caves 16501 | -4/Factory | Cargo convoy interrupted 16527 | -4/Factory | Spotted B-86 Titan 16527 | -4/Factory | Destroyed B-86 Titan 16539 | -4/Factory | Found Prototype Device 16539 | -4/Factory | Identified Exp. Transmission Jammer 16650 | -4/Factory | Build established: Hauler-Scout 16684 | -4/Factory | First assault squad dispatched 16849 | -4/Factory | Destroyed 8 combat bots 17094 | -4/Factory | Destroyed 11 combat bots 17226 | -4/Factory | Build established: Wizard-Scout 17280 | -4/Factory | Destroyed B-86 Titan 17383 | -4/Factory | Fabricated M-36 Artificer (x1) 17442 | -4/Factory | Fabricated Cmb. Linear Gravjet (x2) 17548 | -4/Factory | Sucked down chute 17548 | -4/Factory | Entered Waste 17548 | -4/Waste | Met up with 3 allies sucked down the chute earlier 17549 | -4/Waste | Spotted C-40 Crusher 17555 | -4/Waste | Destroyed C-40 Crusher 17557 | -4/Waste | Spotted C-40 Crusher 17558 | -4/Waste | Destroyed C-40 Crusher 17563 | -4/Waste | EMP discharged 17565 | -4/Waste | 1 allies followed down the chute 17565 | -4/Waste | Spotted C-40 Crusher 17565 | -4/Waste | Spotted C-40 Crusher 17566 | -4/Waste | Destroyed C-40 Crusher 17566 | -4/Waste | Destroyed C-40 Crusher 17569 | -4/Waste | Spotted C-40 Crusher 17571 | -4/Waste | Destroyed C-40 Crusher 17581 | -4/Waste | Spotted C-40 Crusher 17581 | -4/Waste | Destroyed C-40 Crusher 17586 | -4/Waste | Discovered new exit (range 13) 17599 | -4/Waste | Identified exit to Factory 17602 | -4/Waste | Destroyed 13 combat bots 17622 | -4/Waste | Entered Factory 17622 | -4/Factory | Accompanied by 4 allies 17746 | -4/Factory | Discovered exit to Research (range 11) 17851 | -4/Factory | Repaired Exp. Sensor Array? 18286 | -4/Factory | Build established: Wizard-Skirmisher 18326 | -4/Factory | Spotted B-86 Titan 18328 | -4/Factory | Destroyed B-86 Titan 18451 | -4/Factory | Spotted B-86 Titan 18451 | -4/Factory | Destroyed B-86 Titan 18616 | -4/Factory | Discovered exit to Research (range 23) 18645 | -4/Factory | Build established: Wizard-Scout 18750 | -4/Factory | Discovered exit to Research (range 9) 18988 | -4/Factory | Fabricated Exp. Sensor Array (x1) 19008 | -4/Factory | Entered Upper Caves 19008 | -4/Upper Caves | Accompanied by 1 ally 19020 | -4/Upper Caves | Learned 8 Research zone layouts 19170 | -4/Upper Caves | Learned Research interactive machine intel 19175 | -4/Upper Caves | Discovered new exit (range 22) 19184 | -4/Upper Caves | Attacked by a delusional Derelict stockpiling parts 19207 | -4/Upper Caves | Identified exit to Upper Caves 19242 | -4/Upper Caves | Learned location of Quarantine (-3) 19368 | -4/Upper Caves | Entered another Upper Caves area 19368 | -4/Upper Caves | Accompanied by 1 ally 19368 | -4/Upper Caves | Spotted T1-ERU(f) 19368 | -4/Upper Caves | Spotted 8W-FOQ(f) 19369 | -4/Upper Caves | Encountered a Master Thief 19369 | -4/Upper Caves | Encountered a Master Thief 19370 | -4/Upper Caves | Destroyed 8W-FOQ(f) 19372 | -4/Upper Caves | Destroyed T1-ERU(f) 19384 | -4/Upper Caves | Learned Research emergency access door positions 19399 | -4/Upper Caves | Discovered exit to Research (range 6) 19410 | -4/Upper Caves | Learned 4 Research zone layouts 19530 | -4/Upper Caves | Discovered new exit (range 6) 19532 | -4/Upper Caves | Identified exit to Zhirov 19598 | -4/Upper Caves | Entered Zhirov 19598 | -4/Zhirov | Accompanied by 1 ally 19598 | -4/Zhirov | Discovered new exit (range 3) 19617 | -4/Zhirov | Learned location of Testing (-2) 19617 | -4/Zhirov | Learned location of Command (-1) 19624 | -4/Zhirov | Found Alien Artifact 19631 | -4/Zhirov | Found Alien Artifact 19687 | -4/Zhirov | Identified exit to Proximity Caves 19701 | -4/Zhirov | Entered Proximity Caves 19701 | -3/Proximity Caves | Accompanied by 1 ally 19832 | -3/Proximity Caves | Spotter reported a threat 19843 | -3/Proximity Caves | Learned 8 Research zone layouts 19843 | -3/Proximity Caves | Learned 6 Lower Caves zone layouts 19843 | -3/Proximity Caves | Learned Factory security intel 19843 | -3/Proximity Caves | Learned Research garrison access intel 19843 | -3/Proximity Caves | Learned Extension garrison access intel 19848 | -3/Proximity Caves | Destroyed 9 combat bots 19929 | -3/Proximity Caves | Entered Research 19929 | -3/Research | Accompanied by 1 ally 19929 | -3/Research | Evolved 2 slots: Weapon x2 19930 | -3/Research | Identified exit to Research 19930 | -3/Research | Identified exit to Quarantine 19933 | -3/Research | Loaded intel: 46 interactive machine locations 19934 | -3/Research | Loaded intel: 4 garrison access locations 20020 | -3/Research | Identified exit to Armory 20215 | -3/Research | Destroyed 12 combat bots 20340 | -3/Research | Spotted B-90 Cyclops 20343 | -3/Research | Destroyed B-90 Cyclops 20425 | -3/Research | Build established: Wizard-Mutant 20494 | -3/Research | Identified Integrated Reactor 20494 | -3/Research | Identified Transdimensional Reconstructor 20513 | -3/Research | Installed Integrated Reactor, increased core energy generation (+10) 20592 | -3/Research | Spotted B-86 Titan 20611 | -3/Research | Destroyed B-86 Titan 20679 | -3/Research | First assault squad dispatched 20934 | -3/Research | Repaired Adv. System Restoration Module 21072 | -3/Research | Repaired Broken Cld. Antimatter Reactor? 21458 | -3/Research | Incoming assault squad redirected 21497 | -3/Research | Found Prototype Slashing Weapon 21525 | -3/Research | Identified Vibroblade 21639 | -3/Research | Spotted B-86 Titan 21640 | -3/Research | Destroyed B-86 Titan 21716 | -3/Research | Found Enh. Force Lance 21946 | -3/Research | Incoming assault squad redirected 22097 | -3/Research | Entered Quarantine 22176 | -3/Quarantine | Found Alien Artifact 22181 | -3/Quarantine | Found Transdimensional Reconstructor 22183 | -3/Quarantine | Found Transdimensional Reconstructor 22193 | -3/Quarantine | Found Alien Artifact 22195 | -3/Quarantine | Found Alien Artifact 22197 | -3/Quarantine | Found Alien Artifact 22205 | -3/Quarantine | Repaired Prc. Phase Gun? 22243 | -3/Quarantine | Found Alien Reactor 22519 | -3/Quarantine | Identified Hpw. Transdimensional Reconstructor 22519 | -3/Quarantine | Identified Dimensional Node Initializer (x3) 22519 | -3/Quarantine | Identified Matter Drive 22724 | -3/Quarantine | Found Alien Artifact 22748 | -3/Quarantine | Identified Core Reset Matrix 22876 | -3/Quarantine | Used Core Reset Matrix 22880 | -3/Quarantine | Detected hypermatrix surge 22880 | -3/Quarantine | Sensed 3 artifacts in vicinity 23396 | -3/Quarantine | Found Sigix Broadsword 23485 | -3/Quarantine | Central database locked down 23797 | -3/Quarantine | Identified exit to Garrison 23986 | -3/Quarantine | Met incapacitated Sigix Warrior 23986 | -3/Quarantine | Lockdown squad dispatched 23988 | -3/Quarantine | Acquired the access code to the Sigix quarantine chamber 23990 | -3/Quarantine | Unlocked Sigix quarantine chamber 24030 | -3/Quarantine | Spotted Lightning 24033 | -3/Quarantine | Destroyed Lightning 24033 | -3/Quarantine | Spotted Lightning 24035 | -3/Quarantine | Destroyed Lightning 24038 | -3/Quarantine | Spotted Lightning 24058 | -3/Quarantine | Found Prototype Device 24064 | -3/Quarantine | Found Prototype Energy Cannon 24075 | -3/Quarantine | Identified Exp. EM Disruption Field 24075 | -3/Quarantine | Identified EMDS 24109 | -3/Quarantine | Found Prototype Device 24120 | -3/Quarantine | Identified Exp. Phase Shifter 24309 | -3/Quarantine | Repaired Broken Exp. Target Analyzer 24417 | -3/Quarantine | Repaired Cld. Antimatter Reactor 24525 | -3/Quarantine | Repaired Exp. Sensor Array 24624 | -3/Quarantine | Repaired Exp. Cooling System 24704 | -3/Quarantine | Repaired Exp. Power Shielding? 24833 | -3/Quarantine | Repaired Recoil Nullifier 24883 | -3/Quarantine | Repaired Imp. Trap Scanner 24991 | -3/Quarantine | Repaired Enh. Biometal Leg 25099 | -3/Quarantine | Repaired Enh. Biometal Leg 25156 | -3/Quarantine | Destroyed Lightning 25160 | -3/Quarantine | Found Exp. Targeting Computer 25165 | -3/Quarantine | Found Exp. EM Disruption Field 25170 | -3/Quarantine | Found Exp. Phase Shifter 25207 | -3/Quarantine | Repaired Prc. Phase Gun 25315 | -3/Quarantine | Repaired Enh. Biometal Leg 25423 | -3/Quarantine | Repaired Exp. EM Disruption Field 25492 | -3/Quarantine | Repaired Adv. Power Amplifier 25600 | -3/Quarantine | Repaired Enh. Biometal Leg 25708 | -3/Quarantine | Repaired Prc. Phase Gun 25783 | -3/Quarantine | Repaired Adv. Remote Datajack 25845 | -3/Quarantine | Repaired Imp. Heavy Treads 26070 | -3/Quarantine | Found Transdimensional Reconstructor 26214 | -3/Quarantine | Found Sigix Corpse 26219 | -3/Quarantine | Found Sigix Corpse 26302 | -3/Quarantine | Cryocooling Duct disabled 26317 | -3/Quarantine | Ambient heat levels rising (+20) 26317 | -3/Quarantine | Non-combat units ordered to evacuate 26354 | -3/Quarantine | Entered Garrison 26371 | -3/Garrison | Discovered exit to Research (range 55) 26371 | -3/Garrison | Discovered exit to Research (range 72) 26371 | -3/Garrison | Discovered exit to Research (range 102) 26443 | -3/Garrison | Spotted B-86 Titan 26446 | -3/Garrison | Destroyed B-86 Titan 26450 | -3/Garrison | Triggered checkpoint 26492 | -3/Garrison | Triggered checkpoint 26780 | -3/Garrison | Learned Research security intel 26865 | -3/Garrison | Garrison Relay disabled 26917 | -3/Garrison | Learned Research security intel 27004 | -3/Garrison | Triggered checkpoint 27004 | -3/Garrison | Garrison Relay disabled 27520 | -3/Garrison | Triggered checkpoint 27642 | -3/Garrison | Attempted to access garrison exit controls, blocked by remote lockdown 27690 | -3/Garrison | Triggered checkpoint 27690 | -3/Garrison | Triggered checkpoint 27764 | -3/Garrison | Found Unknown Protection 27764 | -3/Garrison | Identified Hvy. Reflective Plating 27855 | -3/Garrison | Build established: Hauler-Mutant 27931 | -3/Garrison | Attempted to access garrison exit controls, blocked by remote lockdown 28035 | -3/Garrison | Entered Research 28035 | -2/Research | Warlord forces began assault on 0b10 28035 | -2/Research | Evolved 2 slots (calibrated): Power x1, -Propulsion x1, Utility x3, -Weapon x1 28048 | -2/Research | Spotted B-90 Cyclops 28060 | -2/Research | Distinguished unit "Department No. 42" dispatched to help 28063 | -2/Research | Revealed the true nature of CR-A16's Pointy Stick 28066 | -2/Research | Destroyed B-90 Cyclops 28122 | -2/Research | Identified exit to Testing 28122 | -2/Research | Identified exit to Access 28145 | -2/Research | Research machine network offline 28291 | -2/Research | Spotted Executioner 28294 | -2/Research | Spotted Executioner 28302 | -2/Research | Destroyed Executioner 28306 | -2/Research | Destroyed Executioner 28334 | -2/Research | Found Exp. Core Analyzer 28347 | -2/Research | Found Exp. Targeting Computer 28361 | -2/Research | Found Adv. Kinecellerator 28411 | -2/Research | Build established: Wizard-Mutant 28420 | -2/Research | Borebot progress halted 28442 | -2/Research | Spotted Striker 28444 | -2/Research | Destroyed Striker 28735 | -2/Research | Spotted Executioner 28735 | -2/Research | P-80 Master assimilated allied E5-KPV(i) 28735 | -2/Research | Spotted Striker 28740 | -2/Research | Destroyed Executioner 28742 | -2/Research | Destroyed Striker 28764 | -2/Research | Entered Testing 28794 | -2/Testing | Found Unknown Device 28794 | -2/Testing | Identified Antimissile System 28920 | -2/Testing | Destroyed 7 combat bots 28941 | -2/Testing | Spotted Striker 28943 | -2/Testing | Spotted Striker 29187 | -2/Testing | Found Prototype Protection 29472 | -2/Testing | Build established: Wizard-Assassin 29633 | -2/Testing | Repaired Prc. Phase Gun? 29674 | -2/Testing | Identified SHELL Armor 29854 | -2/Testing | Found Prototype Energy Gun 29854 | -2/Testing | Identified Hyp. EM Gauss Rifle 29971 | -2/Testing | Warped through subspace 29995 | -2/Testing | Warped through subspace 30012 | -2/Testing | Spotted Fortress 30054 | -2/Testing | Destroyed Fortress 30065 | -2/Testing | Found Prototype Protection 30065 | -2/Testing | Identified Centrium Heavy Armor Plating 30071 | -2/Testing | Found Prototype Device 30071 | -2/Testing | Identified Exp. Force Field 30077 | -2/Testing | Found Unknown Protection 30077 | -2/Testing | Identified Hvy. Insulated Plating 30083 | -2/Testing | Lost 4 parts (3u1w) 30092 | -2/Testing | Found Vortex Chain Reactor 30119 | -2/Testing | Incoming assault squad redirected 30139 | -2/Testing | Discovered new exit (range 6) 30141 | -2/Testing | Identified exit to Section 7 30142 | -2/Testing | Entered Section 7 30143 | -2/Section 7 | Sensed 26 artifacts in vicinity 30256 | -2/Section 7 | Spotted B-90 Cyclops 30257 | -2/Section 7 | Destroyed B-90 Cyclops 30346 | -2/Section 7 | Build established: Wizard-Mutant 30373 | -2/Section 7 | Spotted S7 Guard 30376 | -2/Section 7 | Destroyed S7 Guard 30510 | -2/Section 7 | Repaired Adv. Cloaking Device? 30562 | -2/Section 7 | Repaired Exp. Weapon Shielding 30616 | -2/Section 7 | Repaired Enh. Biometal Leg 30671 | -2/Section 7 | Repaired Enh. Biometal Leg 30742 | -2/Section 7 | Repaired Centrium Heavy Armor Plating 30857 | -2/Section 7 | Found Core Physics Calibrator 30917 | -2/Section 7 | Found Spacefold Activator 31072 | -2/Section 7 | Found Microwarp Drive 31185 | -2/Section 7 | First assault squad dispatched 31229 | -2/Section 7 | Spotted S7 Guard 31241 | -2/Section 7 | Found Integrated Thermoelectric Network 31241 | -2/Section 7 | Installed Integrated Thermoelectric Network, gained heat-energy exchange potential 31257 | -2/Section 7 | Spotted Alpha 7 31718 | -2/Section 7 | Build established: Hacker-Mutant 31831 | -2/Section 7 | Found Integrity Redistributor 31859 | -2/Section 7 | Found Integrated Mediator 31859 | -2/Section 7 | Installed Integrated Mediator, increased core attachment efficiency. 31892 | -2/Section 7 | Spotted Alpha 7 31894 | -2/Section 7 | Destroyed Alpha 7 31907 | -2/Section 7 | Destroyed Alpha 7 31990 | -2/Section 7 | Found Multirail 32004 | -2/Section 7 | Found Multirail 32007 | -2/Section 7 | Found Enh. Gamma Rifle 32024 | -2/Section 7 | Spotted B-99 Colossus 32032 | -2/Section 7 | Destroyed B-99 Colossus 32066 | -2/Section 7 | Found Integrated Reactor 32066 | -2/Section 7 | Installed Integrated Reactor, increased core energy generation (+10) 32068 | -2/Section 7 | Found Integrated Reactor 32068 | -2/Section 7 | Installed Integrated Reactor, increased core energy generation (+10) 32070 | -2/Section 7 | Found Integrated Reactor 32070 | -2/Section 7 | Installed Integrated Reactor, increased core energy generation (+10) 32110 | -2/Section 7 | Found LRC Matter Compressor 32112 | -2/Section 7 | Installed LRC Matter Compressor, increased matter storage capacity (+125) 32119 | -2/Section 7 | Found LRC Armor 32119 | -2/Section 7 | Installed LRC Armor, increased core integrity (+250) 32121 | -2/Section 7 | Found LRC Energy Well 32121 | -2/Section 7 | Installed LRC Energy Well, increased energy storage capacity (+250) 32270 | -2/Section 7 | Spotted Executioner 32278 | -2/Section 7 | Spotted Executioner 32282 | -2/Section 7 | Destroyed Executioner 32286 | -2/Section 7 | Destroyed Executioner 32304 | -2/Section 7 | Spotted Striker 32304 | -2/Section 7 | Spotted Striker 32358 | -2/Section 7 | Destroyed Striker 32362 | -2/Section 7 | Destroyed Striker 32369 | -2/Section 7 | Build established: Alien-Mutant 32613 | -2/Section 7 | Spotted Striker 32613 | -2/Section 7 | Spotted Striker 32625 | -2/Section 7 | Destroyed Striker 32628 | -2/Section 7 | Destroyed Striker 32648 | -2/Section 7 | Found Sigix Sheargun 32650 | -2/Section 7 | Found Sigix Sheargun 32664 | -2/Section 7 | Incoming assault squad redirected 32721 | -2/Section 7 | Found Hpw. Transdimensional Reconstructor 32723 | -2/Section 7 | Found Transdimensional Reconstructor 32726 | -2/Section 7 | Found Transdimensional Reconstructor 32728 | -2/Section 7 | Found Transdimensional Reconstructor 32769 | -2/Section 7 | Spotted Executioner 32782 | -2/Section 7 | Spotted Executioner 32797 | -2/Section 7 | Destroyed Executioner 32800 | -2/Section 7 | Destroyed Executioner 32990 | -2/Section 7 | Discovered exit to Access (range 3) 33007 | -2/Section 7 | Entered Access 33007 | -1/Access | Evolved 2 slots: Utility x2 33380 | -1/Access | Build established: Alien-Assassin 33647 | -1/Access | Destroyed 9 combat bots 33812 | -1/Access | Fabricated Vortex Chain Reactor (x1) 34076 | -1/Access | Garrison activated, responded to threat 34169 | -1/Access | Destroyed 7 combat bots 34321 | -1/Access | Lost 4 parts (1p1n2u) 34393 | -1/Access | Garrison activated, responded to threat 34419 | -1/Access | Incoming investigation squad redirected 34512 | -1/Access | Identified exit to Command 34592 | -1/Access | Garrison activated, responded to threat 34637 | -1/Access | Spotted B-99 Colossus 34758 | -1/Access | Incoming assault squad redirected 34800 | -1/Access | Lost 5 parts (2n2u1w) 34817 | -1/Access | Destroyed B-99 Colossus 34839 | -1/Access | Incoming assault squad redirected 34868 | -1/Access | System corruption reached 10% 34913 | -1/Access | Identified exit to Surface 35029 | -1/Access | Spotted B-99 Colossus 35055 | -1/Access | Destroyed B-99 Colossus 35121 | -1/Access | Found Unknown Launcher 35125 | -1/Access | Found Unknown Launcher 35128 | -1/Access | Found Unknown Launcher 35128 | -1/Access | Identified Fusion Bomb Launcher (x3) 35131 | -1/Access | Found Fusion Bomb Launcher 35136 | -1/Access | Found Centrium Heavy Armor Plating 35195 | -1/Access | Build established: Wizard-Gunner 35243 | -1/Access | Found Point Singularity Launcher 35246 | -1/Access | Found Point Singularity Launcher 35248 | -1/Access | Destroyed 12 combat bots 35249 | -1/Access | Found Point Singularity Launcher 35301 | -1/Access | Repaired Hdn. Centrium Wheel 35951 | -1/Access | Build established: Wizard-Mutant 36090 | -1/Access | Spotted B-99 Colossus 36093 | -1/Access | Destroyed B-99 Colossus 36099 | -1/Access | Found Multirail 36104 | -1/Access | Found Multirail 36113 | -1/Access | Found Unknown Protection 36113 | -1/Access | Identified Hvy. Insulated Plating 36184 | -1/Access | Spotted B-99 Colossus 36187 | -1/Access | Destroyed B-99 Colossus 36202 | -1/Access | Spotted B-99 Colossus 36223 | -1/Access | Destroyed B-99 Colossus 36444 | -1/Access | Spotted B-99 Colossus 36446 | -1/Access | Spotted B-99 Colossus 36494 | -1/Access | Destroyed B-99 Colossus 36512 | -1/Access | Destroyed B-99 Colossus 36601 | *** | Destroyed 0b10! Last Messages --------------- 36590_ U-05 Engineer lays Concrete. 36591_ Dropped Point Singularity Launcher. 36591_ Dropped Fusion Bomb Launcher. 36591_ U-05 Engineer lays Concrete. 36592_ Dropped Fusion Bomb Launcher. 36592_ U-05 Engineer lays Concrete. 36593_ Dropped Imp. Dynamic Insulation System. 36593_ Dropped Sensor Drone Bay. 36594_ Dropped Hyp. Mass Driver. 36594_ U-05 Engineer lays Concrete. 36594_ Dropped Hyp. Mass Driver. 36595_ U-05 Engineer lays Concrete. 36596_ Extracted 5 matter. 36596_ U-05 Engineer lays Concrete. 36597_ Extracted 5 matter. 36597_ Dropped Adv. Datajack. 36597_ Dropped Point Singularity Launcher. 36598_ U-05 Engineer lays Concrete. 36598_ Dropped Hyp. EM Gauss Rifle. 36599_ U-05 Engineer lays Concrete. Map ----- +----------------------------------------------------+ | ?????????????????????????????????????????????????? | | ?????????????????????????????????????????????????? | | ?????????????????????????????????????????????????? | | ?????????????????????????????????????????????????? | | ??????????????????????????????#############??????? | | ??????????????????????????????# #?????? | | ??????????????????????????????# ! #?????? | | ??????????????????????????????# #?????? | | ??????????????????????????????# ####### | | ??????????????????????????????# # | | ??????????????????????????????# # | | ???????????????????????????????? # | | ???????????????????????????????????""""" %+ | | ???????????????????????????????????""""" # | | ???????????????????????????????????""""" # | | ???????????????????????????????????""""" %# | | ???????????????????????????????????""""" " % | | ???????????????????????????????????########!![ | | ??????????# #?????###????????????????????##!!! | | ??????????# #######"######################*%=! | | ??????????# """T"""" """" !== ##%!] | | ??????????# """ """" """"!=%!] "##%] % | | ??????????# " """""" """"]!!!! ### % | | ??????????# " " """" [ % | | ??????????# " " "]]/ """" % %% | | ??????????# " " @=]]] | | ??????????# " " =!!]! u | | ??????????# " """""]! ######### | | ??????????# " ]]"""" ##?????? | | ??????????# " """" #?????# | | ??????????# #######"#####################?????# | | ??????????# #?????###?????????????????????????# | | ??????????# ##############????????????????????# | | ??????????# # """T""" #????????????????????# | | ??????????# # """ """ #????????????????????# | | ??????????# + #????????????????????# | | ########### # #????????????????????### | | # " #??????????????????????? | | # """" #??????????????????????? | | #######+###### """"" #??????????????????????? | | # # """"" #??????????????????????? | | # # """" #??????????????????????? | | # "" # " #??????????????????????? | | # """ # #??????????????????????? | | # "F! # #??????????????????????? | | # """ ########+#####??????????????????????? | | # """ #??????# #?????????????????????###### | | # """ #??????# #?????????????????????? | | + #??????# #??????????????????????? | | # #??????# #???????????????????????? | +----------------------------------------------------+ Best States ------------- Heat Dissipation 130 Energy Generation 110 Energy Capacity 950 Matter Stores 975 Matter Capacity 975 Sight Range 23 Robot Scan Range 200 Terrain Scan Density 10 Jamming Range 22 Cloak Strength 5 Power Amplification 30 Additional Mass Support 12 Base Temperature (-) 200 EM Shielding 4 Corruption Containment 8 Armor Coverage 1800 Resistance: KI 20 Resistance: TH 100 Resistance: EX 20 Resistance: EM 95 Resistance: I 20 Resistance: S 20 Resistance: P 20 Core Shielding 40 Power Shielding 90 Propulsion Shielding 100 Utility Shielding 66 Weapon Shielding 100 Phase Shifting 15 Evasion (%) 75 Targeting Accuracy 50 Melee Accuracy 8 Target Analysis 10 Core Analysis 12 Armor Integrity Analysis 40 Recoil Reduction 6 Energy Filtering 50 Kinecelleration 50 Offensive Hacking 210 Defensive Hacking 200 Authchip Count 1 Item Schematics ----------------- Quantum Reactor | -3/Quarantine | Hacked Biometal Heavy Treads | -3/Quarantine | Hacked Enh. Quantum Rifle | -3/Quarantine | Hacked Linear Accelerator | -3/Quarantine | Hacked Enh. Coil Gun | -3/Quarantine | Archive Adv. Thermal Defense Suite | -3/Quarantine | Archive Adv. Quantum Shading Machine | -3/Quarantine | Hacked Transport Network Coupler | -3/Quarantine | Hacked Actuator Array | -3/Quarantine | Hacked Arm. Treads | -3/Quarantine | Hacked Adv. Transmission Jammer | -3/Quarantine | Hacked Adv. Trap Extractor | -3/Quarantine | Hacked Adv. Trap Scanner | -3/Quarantine | Hacked Adv. Treads | -3/Quarantine | Hacked Adv. Target Analyzer | -3/Quarantine | Hacked Adv. Targeting Computer | -3/Quarantine | Hacked Adv. Terrain Scan Processor | -3/Quarantine | Hacked Adv. Terrain Scanner | -3/Quarantine | Hacked Adv. Thermal Generator | -3/Quarantine | Hacked Adv. Thermal Shield | -3/Quarantine | Hacked Adv. Hacking Suite | -3/Quarantine | Hacked Adv. Heat Sink | -3/Quarantine | Hacked Adv. Heavy Treads | -3/Quarantine | Hacked Adv. Hardlight Generator | -3/Quarantine | Hacked Adv. VSS Leg | -3/Quarantine | Hacked Adv. Particle Charger | -3/Quarantine | Hacked Adv. Plasma Cannon | -3/Quarantine | Hacked Hyb. Antimatter Reactor | -3/Quarantine | Scanalyzed Adv. Component Analysis Suite | -3/Quarantine | Scanalyzed Exp. Core Analyzer | -3/Quarantine | Scanalyzed Adv. Datajack | -3/Quarantine | Scanalyzed Enh. Force Lance | -3/Quarantine | Scanalyzed Imp. Kinecellerator | -3/Quarantine | Scanalyzed Adv. Matter Compressor | -3/Quarantine | Scanalyzed Matter Filter | -3/Quarantine | Scanalyzed Exp. Transmission Jammer | -3/Quarantine | Scanalyzed Adv. System Restoration Module | -3/Quarantine | Scanalyzed Exp. Target Analyzer | -3/Quarantine | Scanalyzed Point Defense Array | -3/Quarantine | Scanalyzed Vortex Chain Reactor | -3/Quarantine | Scanalyzed Adv. Weapon Cycler | -3/Quarantine | Scanalyzed Adv. Force Field | -3/Quarantine | Scanalyzed Adv. Remote Datajack | -3/Quarantine | Scanalyzed Recoil Nullifier | -3/Quarantine | Scanalyzed Exp. Power Shielding | -3/Quarantine | Scanalyzed Tiamat Missile Launcher | -3/Quarantine | Scanalyzed Exp. Energy Well | -3/Quarantine | Archive Hdn. Centrium Wheel | -3/Quarantine | Archive Exp. EM Disruption Field | -3/Quarantine | Scanalyzed Imp. Weapon Shielding | -3/Quarantine | Scanalyzed Exp. Heat Sink | -3/Quarantine | Scanalyzed Adv. Power Amplifier | -3/Quarantine | Scanalyzed Exp. Phase Shifter | -3/Quarantine | Scanalyzed Adv. Shield Generator | -3/Quarantine | Scanalyzed Enh. Nova Cannon | -3/Quarantine | Hacked Lgt. Quantum Reactor | -3/Quarantine | Hacked Adv. Heavy Siege Treads | -3/Quarantine | Hacked Coolant Network | -3/Quarantine | Archive Lgt. Antimatter Cannon | -3/Quarantine | Archive Com. Particle Reactor | -3/Quarantine | Archive Adv. Kinecellerator | -3/Quarantine | Archive Exp. Thermal Shield | -3/Quarantine | Archive Centrium Leg | -2/Research | Hacked Exp. Gyrokinetic Inverter | -2/Testing | Hacked Exp. Actuator Array | -2/Testing | Hacked Beam Splitter | -2/Testing | Archive Cld. Impulse Thruster | -2/Testing | Archive Adv. Gravity Neutralizer | -2/Testing | Archive Exp. Matter Compressor | -2/Testing | Archive Cld. Linear Gravjet | -2/Testing | Archive Cld. Phase Gun | -2/Testing | Archive Enh. Biometal Leg | -2/Testing | Archive Prc. Phase Gun | -2/Testing | Archive Exp. Weapon Cycler | -2/Testing | Hacked Lgt. Regenerative Plating | -2/Testing | Hacked Med. Regenerative Plating | -2/Testing | Hacked Hvy. Regenerative Plating | -2/Testing | Hacked Hvy. Neutron Cannon | -2/Testing | Archive Exp. Hacking Suite | -2/Testing | Archive Spectral Analyzer | -2/Testing | Archive Imp. Matter Compressor | -2/Testing | Archive Exp. Power Amplifier | -2/Testing | Archive Hdn. Centrium Leg | -2/Testing | Hacked Adv. Phase Shifter | -2/Testing | Hacked Hvy. Dispersion Rifle | -2/Testing | Archive Exp. Targeting Computer | -2/Testing | Archive Prc. Matter Filter | -2/Testing | Archive Cld. Q-thruster | -2/Testing | Hacked Thermal Barrier | -2/Testing | Hacked Imp. Dynamic Insulation System | -2/Testing | Scanalyzed Com. Mass Driver | -2/Testing | Archive Tri-rail Accelerator | -2/Testing | Archive Electron Diverter | -2/Testing | Archive Enh. Armored Heavy Treads | -2/Testing | Archive Exp. Force Field | -2/Section 7 | Archive Imp. Energy Mantle | -2/Section 7 | Archive Exp. Focal Shield | -2/Section 7 | Archive Adv. Myomer Leg | -2/Section 7 | Archive Hvy. Tesla Rifle | -2/Section 7 | Archive Hdn. Centrium Heavy Treads | -2/Section 7 | Scanalyzed Exp. Weapon Shielding | -2/Section 7 | Scanalyzed Cmb. Linear Gravjet | -2/Section 7 | Hacked Adv. Plasma Rifle | -2/Section 7 | Archive Mni. Smartbomb Launcher | -2/Section 7 | Archive Adv. Dynamic Insulation System | -2/Section 7 | Archive Imp. Lightning Gun | -2/Section 7 | Archive Hvy. Wave Gun | -2/Section 7 | Archive Point Singularity Launcher | -2/Section 7 | Hacked Adv. Cloaking Device | -2/Section 7 | Hacked Exp. Q-thruster | -2/Section 7 | Archive Cld. Field Propulsion Drive | -2/Section 7 | Archive Cld. Antimatter Reactor | -2/Section 7 | Archive Exp. Biometal Medium Treads | -2/Section 7 | Archive Centrium Light Armor Plating | -2/Section 7 | Archive Imp. KE Penetrator | -2/Section 7 | Archive Kinetic Spear | -2/Section 7 | Archive Centrium Heavy Treads | -2/Section 7 | Archive Lrn. Phase Cannon | -2/Section 7 | Archive Exp. Biometal Leg | -2/Section 7 | Archive Robot Schematics ------------------ C-55 Analyst | -3/Quarantine | Archive R-10 Processor | -3/Quarantine | Archive R-06 Scavenger | -3/Quarantine | Hacked A-15 Conveyor | -3/Quarantine | Hacked T-07 Excavator | -2/Testing | Hacked C-57 Dissector | -2/Testing | Hacked G-73 Enforcer | -2/Testing | Hacked A-27 Freighter | -2/Testing | Hacked K-01 Serf | -2/Testing | Hacked B-74 Champion | -2/Testing | Archive G-67 Veteran | -2/Section 7 | Archive A-02 Transporter | -2/Section 7 | Archive S-43 Plague | -2/Section 7 | Archive Fabricated ------------ Exp. Sensor Array | x1 | -5/Factory M-36 Artificer | x1 | -4/Factory | Preloaded Cmb. Linear Gravjet | x2 | -4/Factory Exp. Sensor Array | x1 | -4/Factory Vortex Chain Reactor | x1 | -1/Access | Authchip Alien Tech Used ----------------- Core Expander Integrated Reactor Core Reset Matrix Sigix Broadsword Transdimensional Reconstructor Integrated Thermoelectric Network Integrated Mediator LRC Matter Compressor LRC Armor LRC Energy Well Core Physics Calibrator Sigix Sheargun Achievements -------------- Supersonic Challenges ------------ None Game ------ Seed OmegaCargoReconfigurator Manual? 0 Play Time 10:48:50 Cumulative 553.0 hours Start 2023.05.22 @ 06:34:00 End 2023.06.15 @ 00:52:24 Sessions 5 Manual Loads 0 Difficulty Adventurer Special Mode None Game No. 106 Rogue 63 Adventurer 43 Explorer 0 Win Type 3 Total 21 Types 6/3/1/5/1/0/1/2/2 Lore% 87 Gallery% 93 Achievement% 79 Wizard Run 0 Options --------- ASCII 0 Keyboard 0 Movement Mouse Keybinds 0 Fullscreen 2 Font 18/X11 Map View 76x50 Tactical HUD 1 Map Filters NONE Filters NONE Steam 1 RUN: d49a415c-19ca-494f-9ddd-dad2086d27f7